Workbook

Sheet Instructions (hidden)
A1: Feed Budget
A3: FEED BUDGET
A4: Do you have the feed requirements of all your stock covered for the coming months?
A5: Do you know how much feed you need to buy?
A6: It’s important to plan well before you buy.
A8: This easy-to-use, 3 step feed budgeting tool will help you answer these questions.
A10: Instructions
A11: Go to Worksheet.
A12: Please ensure you have enabled macros in excel if prompted.
A13: Select your region and the nearest location to your farm from the drop down lists. (This is necessary for looking up pasture growth rates).
A14: Select the season (autumn / winter / spring / summer) you want the budget to start from. Tick further seasons if you wish budget to extend for 2, 3 or 4 seasons.
A15: Proceed through steps 1, 2 and 3, as described below.
A16: Read the Comments boxes and click on the blue Information buttons for further details as you progress through each step.
A17: From the table at the bottom of step 1. Select the feed quality for the pasture, forages and concentrates you have available to you.
A18: Step 1: Calculate your monthly feed demand
A19: Enter number of milking cows to feed, milk production targets and their average liveweight.
A20: Enter number of dry stock on farm (dry cows, yearling heifers and calves), or, if you prefer, leave at 0 and do a separate feed budget for them.
A21: Alter milking cows' daily metabolisable energy (ME) requirement for maintenance if you wish. Also allow for any change in body condition. Click the blue info. button for further details.
A22: If dry stock (dry cows, yearling heifers and calves) are included in the feed budget, alter their daily ME requirements if you wish. Click the blue info. button for further details.
A23: Be realistic about the ME requirements of different classes of stock.
A24: From the table at the bottom of step 1. Select the feed quality for the pasture, forages and concentrates you have available to you.
A25: Total tonnes Dry Matter (DM) required for each month will then be calculated.
A26: Click the 'Continue to Step 2' button.
A28: Step 2: Calculate your total feed deficit for each month
A29: In this step, enter details on up to 3 different pasture areas, then for other forage crops (if any) and home-grown fodder (hay and silage) on hand.
A30: For each pasture, select the pasture type from the drop down list. Then, for each month:
A31: Enter the grazing area (hectares).
A32: Select an average daily growth rate from the drop down list. Choose from 5 options (Poor / Fair / Good / Very good / Exceptional), based on your expectations compared with long term trends for that month. A growth rate value will then be provided. Select 'Other' if your pasture type is not listed and enter your own growth rate value. Note - Pasture cover is assumed to remain constant. Estimated pasture daily growth rates provided for each location by month are based on simulations using the DairyMod® model. Good plant density and management of grazing and fertiliser are assumed. Click the blue info. button for further details.
A33: Select the pasture utilisation rate (Low / Moderate / High) from the drop down list, based on expected conditions. Click the blue info. button for further details.
A34: If you have other grazed forages available, for each month:
A35: Enter the number of tonnes of Dry Matter available, standing in paddocks.
A36: Select the pasture utilisation rate (Low / Moderate / High) from the drop down list, based on expected conditions.
A37: Do a stocktake of home-grown fodder (hay and silage) on hand. Then, for each month:
A38: Enter the number of tonnes of Dry Matter available.
A39: Enter a realistic allowance for wastage (%), based on your intended feed-out method. Click on the blue info. button for further details.
A40: If necessary, seek help from an adviser to estimate quantities of pasture and other home-grown feeds on-hand.
A41: Total tonnes of home-grown DM available and the total feed deficit for each month to be filled will then be calculated.
A42: Click the 'Continue to Step 3a)' button.
A44: Step 3: Calculate quantities of bought-in feeds you require each month
A45: In this step, enter details for a) grains / concentrates, and then b) bought-in fodder.
A46: To help estimate quantities of grain / concentrate and bought-in fodder to be fed each month to fill the deficit, formulate diets for each class of stock included in the feed budget – milking cows, dry cows, yearling heifers and calves. Ensure diets are nutritionally well-balanced, maintain healthy rumen function and give acceptable feed conversion efficiency (litres per kg DM). If necessary, seek help from a nutrition specialist.
A47: For each class of stock included in the feed budget – milking cows, dry cows, yearling heifers and calves - for each month:
A48: Enter the daily feeding rate (kg DM/head/day) of grain / concentrates.
A49: Enter a realistic allowance for wastage (%), based on your intended feed-out method. Click on the blue info. button for further details.
A50: Total tonnes DM of grain / concentrates to be fed and the feed deficit remaining to be filled with bought-in fodder will then be calculated.
A51: Enter the daily feeding rate (Kg DM/head/day) of bought-in fodder for each class of stock included in the feed budget – milkers, dry cows, yearling heifers and calves - with realistic allowances for wastage based on your intended feed-out methods.
A52: Click the 'Continue to Step 3b)' button and for each class of stock included in the feed budget, for each month, enter daily feeding rate and allowance for wastage.
A53: Total tonnes DM of bought-in fodder to be fed and the feed deficit now remaining will then be calculated. The aim is to reduce the feed deficit to close to zero through the quantities of grain / concentrates and bought-in fodder to be fed.
A54: Aim for a value of zero. If value is greater than zero, this means more bought-in feed is required to fill deficit.
A55: If value is less than zero, this means less bought-in feed is required to fill deficit.
A56: Click the 'Continue to Summary' button. If you wish to print this one page summary, click 'Print'.
A58: Revise your feed budget when circumstances change e.g. available feeds, number of animals to be fed.
A60: Disclaimer:
A61: This tool is published for your information. It is published with due care and attention to accuracy, but Dairy Australia makes no warranty with regard to the accuracy and reliability of the information provided, and accepts no responsibility for loss arising in any way from or in connection with errors or omissions in any information, advice or use of the information. The tool is a guide only and professional advice should be sought regarding your specific circumstances.
A63: © Copyright Dairy Australia 2018

Sheet Guidelines
B2: Dairy Australia Feed Budgeting Tool
B4: To use this tool refer to the guidelines available here

Sheet Macros Instructions
B8: Important information: download this Excel file to a computer desktop or document folder and enable the macros. If the macros are not enabled, follow these steps:
B9: • Close the file.
B10: • Find the file in the saved location/folder.
B11: • Right click on the file and select Properties.
B12: • At the bottom of the General tab, tick the Unblock checkbox and select Apply and then OK.
B13: • Open the file.
B15: If the above did not enable the macros, follow these steps:
B16: • Open the file.
B17: • Go to File > Options > Trust Center > Trust Center Settings > Trusted Locations.
B18: • Add the saved location/folder (this tells Excel that it is safe to run macros from that location).

Sheet Worksheet
A1: FEED BUDGET worksheet | B1: =getversion() -> Version Nov 15 2019
A2: Region:
A3: Nearest location to your farm:
A6: Step 1: Calculate your monthly feed demand | O6: Step 2: Calculate your total feed deficit for each month | AC6: Step 3: Calculate quantities of bought-in feeds you require each month to fill deficit
A7: Cow production | B7: Sep | C7: =nextmonth(B7) -> Oct | D7: =nextmonth(C7) -> Nov | E7: Dec | F7: Jan | G7: Feb | H7: Mar | I7: Apr | J7: May | K7: Jun | L7: Jul | M7: Aug | O7: Home-grown Dry Matter available | P7: =B7 -> Sep | Q7: =C7 -> Oct | R7: Nov | S7: Dec | T7: Jan | U7: Feb | V7: Mar | W7: Apr | X7: May | Y7: Jun | Z7: Jul | AA7: Aug | AC7: a) Grain / concentrates (tn DM) | AD7: =B7 -> Sep | AE7: =C7 -> Oct | AF7: Nov | AG7: Dec | AH7: Jan | AI7: Feb | AJ7: Mar | AK7: Apr | AL7: May | AM7: Jun | AN7: Jul | AO7: Aug | AQ7: b) Bought-in fodder (tn DM) | AR7: =B7 -> Sep | AS7: =C7 -> Oct | AT7: Nov | AU7: Dec | AV7: Jan | AW7: Feb | AX7: Mar | AY7: Apr | AZ7: May | BA7: Jun | BB7: Jul | BC7: Aug
A8: Milking cows | B8: 50 | C8: 20 | D8: 30 | E8: 40 | F8: 50 | G8: 60 | H8: 70 | I8: 80 | J8: 90 | K8: 100 | L8: 110 | M8: 120 | O8: Pasture 1: (Select type from drop down list) | P8: =MEPastureText -> (assuming 11 MJ/kg DM) | AC8: ="Milking cows " & MEConcText -> Milking cows (assuming 12 MJ/kg DM) | AD8: =B8 -> 50 | AE8: 20 | AF8: 30 | AG8: 40 | AH8: 50 | AI8: =G8 -> 60 | AJ8: =H8 -> 70 | AK8: =I8 -> 80 | AL8: 90 | AM8: 100 | AN8: 110 | AO8: 120 | AQ8: ="Milking cows " & MEBoughtText -> Milking cows (assuming 10 MJ/kg DM) | AR8: =B8 -> 50 | AS8: 20 | AT8: 30 | AU8: 40 | AV8: 50 | AW8: =G8 -> 60 | AX8: =H8 -> 70 | AY8: =I8 -> 80 | AZ8: =J8 -> 90 | BA8: 100 | BB8: 110 | BC8: 120
A9: Litres per cow | B9: 21 | C9: 20 | D9: 19 | E9: 18 | F9: 17 | G9: 16 | H9: 15 | I9: 14 | J9: 13 | K9: 12 | L9: 11 | M9: 10 | AC9: Feeding rate (kg DM/head/day) | AD9: 5 | AE9: 5 | AF9: 5 | AG9: 5 | AH9: 5 | AI9: 5 | AJ9: 5 | AK9: 5 | AL9: 5 | AM9: 5 | AN9: 5 | AO9: 5 | AQ9: Feeding rate (kg DM/head/day) | AR9: 5 | AS9: 5 | AT9: 5 | AU9: 5 | AV9: 5 | AW9: 5 | AX9: 5 | AY9: 5 | AZ9: 5 | BA9: 5 | BB9: 5 | BC9: 5
A10: Fat % | B10: 4 | C10: 4 | D10: 4 | E10: 4 | F10: 4 | G10: 4 | H10: 4 | I10: 4 | J10: 4 | K10: 4 | L10: 4 | M10: 4 | O10: Area (hectares) | P10: 0 | Q10: 0 | R10: 0 | S10: 0 | T10: 0 | U10: 0 | V10: 0 | W10: 0 | X10: 0 | Y10: 0 | Z10: 0 | AA10: 0 | AC10: Wastage rate at feed-out | AD10: 0.02 | AE10: 0.02 | AF10: 0.02 | AG10: 0.02 | AH10: 0.02 | AI10: 0.02 | AJ10: 0.02 | AK10: 0.02 | AL10: 0.02 | AM10: 0.02 | AN10: 0.02 | AO10: 0.02 | AQ10: Wastage rate at feed-out | AR10: 0 | AS10: 0.2 | AT10: 0.2 | AU10: 0.2 | AV10: 0.2 | AW10: 0.2 | AX10: 0.2 | AY10: 0.2 | AZ10: 0.2 | BA10: 0.2 | BB10: 0.2 | BC10: 0.2
A11: Protein % | B11: 3 | C11: 3 | D11: 3 | E11: 3 | F11: 3 | G11: 3 | H11: 3 | I11: 3 | J11: 3 | K11: 3 | L11: 3 | M11: 3 | O11: Growth rate: (Select from drop down list) | P11: Good | Q11: Good | R11: Good | S11: Good | T11: Good | U11: Good | V11: Good | W11: Good | X11: Good | Y11: Good | Z11: Good | AA11: Good | AC11: Tonnes DM | AD11: =AD8*AD9*(1-AD10)*DaysInMonth(AD7)/1000 -> 7.35 | AE11: 3.038 | AF11: 4.41 | AG11: 6.076 | AH11: 7.595 | AI11: 8.232 | AJ11: 10.633 | AK11: 11.76 | AL11: 13.671 | AM11: 14.7 | AN11: 16.709 | AO11: 18.228 | AQ11: Total | AR11: =AR8*AR9*(1-AR10)*DaysInMonth(AR7)/1000 -> 7.5 | AS11: =AS8*AS9*(1-AS10)*DaysInMonth(AS7)/1000 -> 2.48 | AT11: 3.6 | AU11: 4.96 | AV11: 6.2 | AW11: 6.72 | AX11: 8.68 | AY11: 9.6 | AZ11: 11.16 | BA11: 12 | BB11: 13.64 | BC11: 14.88
A12: Av. liveweight of milkers (kg) | B12: 580 | C12: 580 | D12: 580 | E12: 580 | F12: 580 | G12: 580 | H12: 580 | I12: 580 | J12: 580 | K12: 580 | L12: 580 | M12: 580 | O12: Kg DM/ha/day | P12: =IF(ISNA(VLOOKUP(OFFSET(RegionListTop,RegionNumber,0)&OFFSET(LocationListTop,LocationNumber,0)&OFFSET(PastureListTop,Pasture1Number,0)&LEFT(P$7,3), GrowthDatabase,VLOOKUP(P11,GrowthOffset,2,FALSE),FALSE)),0,VLOOKUP(OFFSET(RegionListTop,RegionNumber,0)&OFFSET(LocationListTop,LocationNumber,0)&OFFSET(PastureListTop,Pasture1Number,0)&LEFT(P$7,3), GrowthDatabase,VLOOKUP(P11,GrowthOffset,2,FALSE),FALSE)) -> 53.44 | Q12: =IF(ISNA(VLOOKUP(OFFSET(RegionListTop,RegionNumber,0)&OFFSET(LocationListTop,LocationNumber,0)&OFFSET(PastureListTop,Pasture1Number,0)&LEFT(Q$7,3), GrowthDatabase,VLOOKUP(Q11,GrowthOffset,2,FALSE),FALSE)),0,VLOOKUP(OFFSET(RegionListTop,RegionNumber,0)&OFFSET(LocationListTop,LocationNumber,0)&OFFSET(PastureListTop,Pasture1Number,0)&LEFT(Q$7,3), GrowthDatabase,VLOOKUP(Q11,GrowthOffset,2,FALSE),FALSE)) -> 38.4516129 | R12: 20.42 | S12: 4.190625 | T12: 1.59375 | U12: 1.331034483 | V12: 1.009375 | W12: 3.322580645 | X12: 8.251612903 | Y12: 13.63870968 | Z12: 14.246875 | AA12: 37.59354839
A13: Farm production | B13: =B7 -> Sep | C13: =C7 -> Oct | D13: Nov | E13: Dec | F13: Jan | G13: Feb | H13: Mar | I13: Apr | J13: May | K13: Jun | L13: Jul | M13: Aug | O13: Utilisation: (Select from drop down list) | P13: Moderate | Q13: Moderate | R13: Moderate | S13: Moderate | T13: Moderate | U13: Moderate | V13: Moderate | W13: Moderate | X13: Moderate | Y13: Moderate | Z13: Moderate | AA13: Moderate | AC13: ="Dry cows " & MEConcText -> Dry cows (assuming 12 MJ/kg DM) | AD13: =B19 -> 50 | AE13: 50 | AF13: 50 | AG13: 50 | AH13: 50 | AI13: =G19 -> 50 | AJ13: =H19 -> 50 | AK13: =I19 -> 50 | AL13: =J19 -> 50 | AM13: 50 | AN13: 50 | AO13: 50 | AQ13: ="Dry cows " & MEBoughtLowText -> Dry cows (assuming 9 MJ/kg DM) | AR13: =B19 -> 50 | AS13: 50 | AT13: 50 | AU13: 50 | AV13: 50 | AW13: =G19 -> 50 | AX13: =H19 -> 50 | AY13: =I19 -> 50 | AZ13: =J19 -> 50 | BA13: 50 | BB13: 50 | BC13: 50
A14: Litres | B14: =B8*B9*DaysInMonth(B13) -> 31500 | C14: =C8*C9*DaysInMonth(C13) -> 12400 | D14: 17100 | E14: =E8*E9*DaysInMonth(E13) -> 22320 | F14: 26350 | G14: 26880 | H14: 32550 | I14: 33600 | J14: 36270 | K14: 36000 | L14: 37510 | M14: 37200 | O14: Percentage | P14: =IF(ISNA(VLOOKUP(P13,UtilisationPasture,2,FALSE)),0,VLOOKUP(P13,UtilisationPasture,2,FALSE)) -> 0.7 | Q14: =IF(ISNA(VLOOKUP(Q13,UtilisationPasture,2,FALSE)),0,VLOOKUP(Q13,UtilisationPasture,2,FALSE)) -> 0.7 | R14: 0.7 | S14: 0.7 | T14: 0.7 | U14: 0.7 | V14: 0.7 | W14: 0.7 | X14: 0.7 | Y14: 0.7 | Z14: 0.7 | AA14: 0.7 | AC14: Feeding rate (kg DM/head/day) | AD14: 2 | AE14: 2 | AF14: 2 | AG14: 2 | AH14: 2 | AI14: 2 | AJ14: 2 | AK14: 2 | AL14: 2 | AM14: 2 | AN14: 2 | AO14: 2 | AQ14: Feeding rate (kg DM/head/day) | AR14: 5 | AS14: 5 | AT14: 5 | AU14: 5 | AV14: 5 | AW14: 5 | AX14: 5 | AY14: 5 | AZ14: 5 | BA14: 5 | BB14: 5 | BC14: 5
A15: Fat (kg) | B15: =B8*(B9*B10/100)*DaysInMonth(B13) -> 1260 | C15: =C8*(C9*C10/100)*DaysInMonth(C13) -> 496 | D15: =D8*(D9*D10/100)*DaysInMonth(D13) -> 684 | E15: =E8*(E9*E10/100)*DaysInMonth(E13) -> 892.8 | F15: 1054 | G15: 1075.2 | H15: 1302 | I15: 1344 | J15: 1450.8 | K15: 1440 | L15: 1500.4 | M15: 1488 | O15: Tonnes DM available | P15: =(P10*P12*P14*DaysInMonth(P7)/1000) ->  | Q15: =(Q10*Q12*Q14*DaysInMonth(Q7)/1000) ->  | S15: =S10*S12*S14*DaysInMonth(S7)/1000 ->  | AC15: Wastage rate at feed-out | AD15: 0.1 | AE15: 0.1 | AF15: 0.1 | AG15: 0.1 | AH15: 0.1 | AI15: 0.1 | AJ15: 0.1 | AK15: 0.1 | AL15: 0.1 | AM15: 0.1 | AN15: 0.1 | AO15: 0.1 | AQ15: Wastage rate at feed-out | AR15: 0.2 | AS15: 0.2 | AT15: 0.2 | AU15: 0.2 | AV15: 0.2 | AW15: 0.2 | AX15: 0.2 | AY15: 0.2 | AZ15: 0.2 | BA15: 0.2 | BB15: 0.2 | BC15: 0.2
A16: Protein (kg) | B16: =B8*(B9*B11/100)*DaysInMonth(B13) -> 945 | C16: =C8*(C9*C11/100)*DaysInMonth(C13) -> 372 | D16: =D8*(D9*D11/100)*DaysInMonth(D13) -> 513 | E16: =E8*(E9*E11/100)*DaysInMonth(E13) -> 669.6 | F16: 790.5 | G16: 806.4 | H16: 976.5 | I16: 1008 | J16: 1088.1 | K16: 1080 | L16: 1125.3 | M16: 1116 | AC16: Tonnes DM | AD16: =AD13*AD14*(1+AD15)*DaysInMonth(AD7)/1000 -> 3.3 | AE16: =AE13*AE14*(1+AE15)*DaysInMonth(AE7)/1000 -> 3.41 | AF16: 3.3 | AG16: 3.41 | AH16: 3.41 | AI16: 3.08 | AJ16: 3.41 | AK16: 3.3 | AL16: 3.41 | AM16: 3.3 | AN16: 3.41 | AO16: 3.41 | AQ16: Total | AR16: =AR13*AR14*(1-AR15)*DaysInMonth(AR7)/1000 -> 6 | AS16: =AS13*AS14*(1-AS15)*DaysInMonth(AS7)/1000 -> 6.2 | AT16: 6 | AU16: 6.2 | AV16: 6.2 | AW16: 5.6 | AX16: 6.2 | AY16: 6 | AZ16: 6.2 | BA16: 6 | BB16: 6.2 | BC16: 6.2
O17: Pasture 2: (Select type from drop down list) | P17: =MEPastureText -> (assuming 11 MJ/kg DM)
A18: Dry stock on farm | B18: =B7 -> Sep | C18: =C7 -> Oct | D18: Nov | E18: Dec | F18: Jan | G18: Feb | H18: Mar | I18: Apr | J18: May | K18: Jun | L18: Jul | M18: Aug | AC18: ="Yearling heifers " & MEConcText -> Yearling heifers (assuming 12 MJ/kg DM) | AD18: =B20 -> 75 | AE18: 75 | AF18: 75 | AG18: 75 | AH18: 75 | AI18: =G20 -> 75 | AJ18: =H20 -> 75 | AK18: =I20 -> 75 | AL18: =J20 -> 75 | AM18: 75 | AN18: 75 | AO18: 75 | AQ18: ="Yearling heifers " & MEBoughtLowText -> Yearling heifers (assuming 9 MJ/kg DM) | AR18: =B20 -> 75 | AS18: 75 | AT18: 75 | AU18: 75 | AV18: 75 | AW18: =G20 -> 75 | AX18: =H20 -> 75 | AY18: =I20 -> 75 | AZ18: =J20 -> 75 | BA18: 75 | BB18: 75 | BC18: 75
A19: Dry cows | B19: 50 | C19: 50 | D19: 50 | E19: 50 | F19: 50 | G19: 50 | H19: 50 | I19: 50 | J19: 50 | K19: 50 | L19: 50 | M19: 50 | O19: Area (hectares) | P19: 0 | Q19: 0 | R19: 0 | S19: 0 | T19: 0 | U19: 0 | V19: 0 | W19: 0 | X19: 0 | Y19: 0 | Z19: 0 | AA19: 0 | AC19: Feeding rate (kg DM/head/day) | AD19: 2 | AE19: 2 | AF19: 2 | AG19: 2 | AH19: 2 | AI19: 2 | AJ19: 2 | AK19: 2 | AL19: 2 | AM19: 2 | AN19: 2 | AO19: 2 | AQ19: Feeding rate (kg DM/head/day) | AR19: 5 | AS19: 5 | AT19: 5 | AU19: 5 | AV19: 5 | AW19: 5 | AX19: 5 | AY19: 5 | AZ19: 5 | BA19: 5 | BB19: 5 | BC19: 5
A20: Yearling heifers | B20: 75 | C20: 75 | D20: 75 | E20: 75 | F20: 75 | G20: 75 | H20: 75 | I20: 75 | J20: 75 | K20: 75 | L20: 75 | M20: 75 | O20: Growth rate: (Select from drop down list) | P20: Good | Q20: Good | R20: Good | S20: Good | T20: Good | U20: Good | V20: Good | W20: Good | X20: Good | Y20: Good | Z20: Good | AA20: Good | AC20: Wastage rate at feed-out | AD20: 0.1 | AE20: 0.1 | AF20: 0.1 | AG20: 0.1 | AH20: 0.1 | AI20: 0.1 | AJ20: 0.1 | AK20: 0.1 | AL20: 0.1 | AM20: 0.1 | AN20: 0.1 | AO20: 0.1 | AQ20: Wastage rate at feed-out | AR20: 0.2 | AS20: 0.2 | AT20: 0.2 | AU20: 0.2 | AV20: 0.2 | AW20: 0.2 | AX20: 0.2 | AY20: 0.2 | AZ20: 0.2 | BA20: 0.2 | BB20: 0.2 | BC20: 0.2
A21: Calves | B21: 100 | C21: 100 | D21: 100 | E21: 100 | F21: 100 | G21: 100 | H21: 100 | I21: 100 | J21: 100 | K21: 100 | L21: 100 | M21: 100 | O21: Kg DM/ha/day | P21: =IF(ISNA(VLOOKUP(OFFSET(RegionListTop,RegionNumber,0)&OFFSET(LocationListTop,LocationNumber,0)&OFFSET(PastureListTop,Pasture2Number,0)&LEFT(P$7,3), GrowthDatabase,VLOOKUP(P20,GrowthOffset,2,FALSE),FALSE)),0,VLOOKUP(OFFSET(RegionListTop,RegionNumber,0)&OFFSET(LocationListTop,LocationNumber,0)&OFFSET(PastureListTop,Pasture2Number,0)&LEFT(P$7,3), GrowthDatabase,VLOOKUP(P20,GrowthOffset,2,FALSE),FALSE)) -> 0 | Q21: 0 | R21: 0 | S21: 0 | T21: 0 | U21: 0 | V21: 0 | W21: 0 | X21: 0 | Y21: 0 | Z21: 0 | AA21: 0 | AC21: Tonnes DM | AD21: =AD18*AD19*(1-AD20)*DaysInMonth(AD7)/1000 -> 4.05 | AE21: =AE18*AE19*(1-AE20)*DaysInMonth(AE7)/1000 -> 4.185 | AF21: 4.05 | AG21: 4.185 | AH21: 4.185 | AI21: 3.78 | AJ21: 4.185 | AK21: 4.05 | AL21: 4.185 | AM21: 4.05 | AN21: 4.185 | AO21: 4.185 | AQ21: Total | AR21: =AR18*AR19*(1-AR20)*DaysInMonth(AR7)/1000 -> 9 | AS21: =AS18*AS19*(1+AS20)*DaysInMonth(AS7)/1000 -> 13.95 | AT21: 13.5 | AU21: 13.95 | AV21: 13.95 | AW21: 12.6 | AX21: 13.95 | AY21: 13.5 | AZ21: 13.95 | BA21: 13.5 | BB21: 13.95 | BC21: 13.95
O22: Utilisation: (Select from drop down list) | P22: Moderate | Q22: Moderate | R22: Moderate | S22: Moderate | T22: Moderate | U22: Moderate | V22: Moderate | W22: Moderate | X22: Moderate | Y22: Moderate | Z22: Moderate | AA22: Moderate
A23: Daily energy requirements (MJ ME/head/day) | B23: =B7 -> Sep | C23: =C7 -> Oct | D23: Nov | E23: Dec | F23: Jan | G23: Feb | H23: Mar | I23: Apr | J23: May | K23: Jun | L23: Jul | M23: Aug | O23: Percentage | P23: =IF(ISNA(VLOOKUP(P22,UtilisationPasture,2,FALSE)),0,VLOOKUP(P22,UtilisationPasture,2,FALSE)) -> 0.7 | Q23: 0.7 | R23: 0.7 | S23: 0.7 | T23: 0.7 | U23: 0.7 | V23: 0.7 | W23: 0.7 | X23: 0.7 | Y23: 0.7 | Z23: 0.7 | AA23: 0.7 | AC23: ="Calves " & MEConcText -> Calves (assuming 12 MJ/kg DM) | AD23: =B21 -> 100 | AE23: 100 | AF23: 100 | AG23: 100 | AH23: 100 | AI23: =G21 -> 100 | AJ23: =H21 -> 100 | AK23: =I21 -> 100 | AL23: =J21 -> 100 | AM23: 100 | AN23: 100 | AO23: 100 | AQ23: ="Calves " & MEBoughtText -> Calves (assuming 10 MJ/kg DM) | AR23: =B21 -> 100 | AS23: 100 | AT23: 100 | AU23: 100 | AV23: 100 | AW23: =G21 -> 100 | AX23: =H21 -> 100 | AY23: =I21 -> 100 | AZ23: =J21 -> 100 | BA23: 100 | BB23: 100 | BC23: 100
A24: Milking cows | O24: Tonnes DM available | P24: =(P19*P21*P23*DaysInMonth(P7)/1000) ->  | Q24: =(Q19*Q21*Q23*DaysInMonth(Q7)/1000) ->  | S24: =S19*S21*S23*DaysInMonth(S7)/1000 ->  | AC24: Feeding rate (kg DM/head/day) | AD24: 2 | AE24: 2 | AF24: 2 | AG24: 2 | AH24: 2 | AI24: 2 | AJ24: 2 | AK24: 2 | AL24: 2 | AM24: 2 | AN24: 2 | AO24: 2 | AQ24: Feeding rate (kg DM/head/day) | AR24: 5 | AS24: 5 | AT24: 5 | AU24: 5 | AV24: 5 | AW24: 5 | AX24: 5 | AY24: 5 | AZ24: 5 | BA24: 5 | BB24: 5 | BC24: 5
A25: Maintenance | B25: 85 | C25: 85 | D25: 85 | E25: 85 | F25: 85 | G25: 85 | H25: 85 | I25: 85 | J25: 85 | K25: 85 | L25: 85 | M25: 85 | AC25: Wastage rate at feed-out | AD25: 0.05 | AE25: 0.05 | AF25: 0.05 | AG25: 0.05 | AH25: 0.05 | AI25: 0.05 | AJ25: 0.05 | AK25: 0.05 | AL25: 0.05 | AM25: 0.05 | AN25: 0.05 | AO25: 0.05 | AQ25: Wastage rate at feed-out | AR25: 0.2 | AS25: 0.2 | AT25: 0.2 | AU25: 0.2 | AV25: 0.2 | AW25: 0.2 | AX25: 0.2 | AY25: 0.2 | AZ25: 0.2 | BA25: 0.2 | BB25: 0.2 | BC25: 0.2
A26: Milk | B26: =5.25*B9 -> 110.25 | C26: 105 | D26: 99.75 | E26: 94.5 | F26: 89.25 | G26: =5.25*G9 -> 84 | H26: =5.25*H9 -> 78.75 | I26: =5.25*I9 -> 73.5 | J26: =5.25*J9 -> 68.25 | K26: 63 | L26: 57.75 | M26: 52.5 | O26: Pasture 3: (Select type from drop down list) | P26: =MEPastureText -> (assuming 11 MJ/kg DM) | AC26: Tonnes DM | AD26: =AD23*AD24*(1-AD25)*DaysInMonth(AD7)/1000 -> 5.7 | AE26: =AE23*AE24*(1-AE25)*DaysInMonth(AE7)/1000 -> 5.89 | AF26: 5.7 | AG26: 5.89 | AH26: 5.89 | AI26: 5.32 | AJ26: 5.89 | AK26: 5.7 | AL26: 5.89 | AM26: 5.7 | AN26: 5.89 | AO26: 5.89 | AQ26: Total | AR26: =AR23*AR24*(1-AR25)*DaysInMonth(AR7)/1000 -> 12 | AS26: =AS23*AS24*(1-AS25)*DaysInMonth(AS7)/1000 -> 12.4 | AT26: 12 | AU26: 12.4 | AV26: 12.4 | AW26: 11.2 | AX26: 12.4 | AY26: 12 | AZ26: 12.4 | BA26: 12 | BB26: 12.4 | BC26: 12.4
A27: Total | B27: =SUM(B25:B26) -> 195.25 | C27: 190 | D27: 184.75 | E27: 179.5 | F27: 174.25 | G27: =SUM(G25:G26) -> 169 | H27: =SUM(H25:H26) -> 163.75 | I27: =SUM(I25:I26) -> 158.5 | J27: =SUM(J25:J26) -> 153.25 | K27: 148 | L27: 142.75 | M27: 137.5
A28: Dry cows | B28: 100 | C28: 100 | D28: 100 | E28: 100 | F28: 100 | G28: 100 | H28: 100 | I28: 100 | J28: 100 | K28: 100 | L28: 100 | M28: 100 | O28: Area (hectares) | P28: 0 | Q28: 0 | R28: 0 | S28: 0 | T28: 0 | U28: 0 | V28: 0 | W28: 0 | X28: 0 | Y28: 0 | Z28: 0 | AA28: 0 | AC28: TOTAL GRAIN/CONCENTRATES to be fed | AD28: =B7 -> Sep | AE28: =C7 -> Oct | AF28: Nov | AG28: Dec | AH28: Jan | AI28: Feb | AJ28: Mar | AK28: Apr | AL28: May | AM28: Jun | AN28: Jul | AO28: Aug | AQ28: TOTAL BOUGHT-IN FODDER to be fed | AR28: =B7 -> Sep | AS28: =C7 -> Oct | AT28: Nov | AU28: Dec | AV28: Jan | AW28: Feb | AX28: Mar | AY28: Apr | AZ28: May | BA28: Jun | BB28: Jul | BC28: Aug
A29: Yearling heifers | B29: 90 | C29: 90 | D29: 90 | E29: 90 | F29: 90 | G29: 90 | H29: 90 | I29: 90 | J29: 90 | K29: 90 | L29: 90 | M29: 90 | O29: Growth rate: (Select from drop down list) | P29: Good | Q29: Good | R29: Good | S29: Good | T29: Good | U29: Good | V29: Good | W29: Good | X29: Good | Y29: Good | Z29: Good | AA29: Good | AC29: Tonnes DM | AD29: =AD11+AD16+AD21+AD26 -> 20.4 | AE29: 16.523 | AF29: 17.46 | AG29: 19.561 | AH29: 21.08 | AI29: =AI11+AI16+AI21+AI26 -> 20.412 | AJ29: =AJ11+AJ16+AJ21+AJ26 -> 24.118 | AK29: =AK11+AK16+AK21+AK26 -> 24.81 | AL29: =AL11+AL16+AL21+AL26 -> 27.156 | AM29: 27.75 | AN29: 30.194 | AO29: 31.713 | AQ29: Tonnes DM | AR29: =AR11+AR16+AR21+AR26 -> 34.5 | AS29: 35.03 | AT29: 35.1 | AU29: 37.51 | AV29: 38.75 | AW29: =AW11+AW16+AW21+AW26 -> 36.12 | AX29: =AX11+AX16+AX21+AX26 -> 41.23 | AY29: =AY11+AY16+AY21+AY26 -> 41.1 | AZ29: =AZ11+AZ16+AZ21+AZ26 -> 43.71 | BA29: 43.5 | BB29: 46.19 | BC29: 47.43
A30: Calves | B30: 60 | C30: 60 | D30: 60 | E30: 60 | F30: 60 | G30: 60 | H30: 60 | I30: 60 | J30: 60 | K30: 60 | L30: 60 | M30: 60 | O30: Kg DM/ha/day | P30: =IF(ISNA(VLOOKUP(OFFSET(RegionListTop,RegionNumber,0)&OFFSET(LocationListTop,LocationNumber,0)&OFFSET(PastureListTop,Pasture3Number,0)&LEFT(P$7,3), GrowthDatabase,VLOOKUP(P29,GrowthOffset,2,FALSE),FALSE)),0,VLOOKUP(OFFSET(RegionListTop,RegionNumber,0)&OFFSET(LocationListTop,LocationNumber,0)&OFFSET(PastureListTop,Pasture3Number,0)&LEFT(P$7,3), GrowthDatabase,VLOOKUP(P29,GrowthOffset,2,FALSE),FALSE)) -> 0 | Q30: 0 | R30: 0 | S30: 0 | T30: 0 | U30: 0 | V30: 0 | W30: 0 | X30: 0 | Y30: 0 | Z30: 0 | AA30: 0
O31: Utilisation: (Select from drop down list) | P31: Moderate | Q31: Moderate | R31: Moderate | S31: Moderate | T31: Moderate | U31: Moderate | V31: Moderate | W31: Moderate | X31: Moderate | Y31: Moderate | Z31: Moderate | AA31: Moderate | AC31: Feed deficit remaining to be filled with fodder | AD31: =B7 -> Sep | AE31: =C7 -> Oct | AF31: Nov | AG31: Dec | AH31: Jan | AI31: Feb | AJ31: Mar | AK31: Apr | AL31: May | AM31: Jun | AN31: Jul | AO31: Aug
A32: ="Tonnes DM req'd " & MEBaseText -> Tonnes DM req'd (assuming 11 MJ/kg DM) | B32: =B7 -> Sep | C32: =C7 -> Oct | D32: Nov | E32: Dec | F32: Jan | G32: Feb | H32: Mar | I32: Apr | J32: May | K32: Jun | L32: Jul | M32: Aug | O32: Percentage | P32: =IF(ISNA(VLOOKUP(P31,UtilisationPasture,2,FALSE)),0,VLOOKUP(P31,UtilisationPasture,2,FALSE)) -> 0.7 | Q32: 0.7 | R32: 0.7 | S32: 0.7 | T32: 0.7 | U32: 0.7 | V32: 0.7 | W32: 0.7 | X32: 0.7 | Y32: 0.7 | Z32: 0.7 | AA32: 0.7 | AC32: ="Tonnes DM " & MEBaseText -> Tonnes DM (assuming 11 MJ/kg DM) | AD32: =P55-(AD29*MEConc/MEBase) -> 
A33: Milking cows | B33: =(B8*B27*DaysInMonth(B32))/MEBase/1000 -> 26.625 | C33: =(C8*C27*DaysInMonth(C32))/MEBase/1000 -> 10.70909091 | D33: =(D8*D27*DaysInMonth(D32))/MEBase/1000 -> 15.11590909 | E33: =(E8*E27*DaysInMonth(E32))/11/1000 -> 20.23454545 | F33: 24.55340909 | G33: 25.81090909 | H33: 32.30340909 | I33: 34.58181818 | J33: 38.86977273 | K33: 40.36363636 | L33: 44.2525 | M33: 46.5 | O33: Tonnes DM available | P33: =(P28*P30*P32*DaysInMonth(P7)/1000) ->  | Q33: =(Q28*Q30*Q32*DaysInMonth(Q7)/1000) ->  | S33: =S28*S30*S32*DaysInMonth(S7)/1000 ->  | AD33: =IF(ROUND(AD32,0)<0,"Surplus",IF(ROUND(AD32,0)>0,"Deficit","")) ->  | AE33: =IF(ROUND(AE32,0)<0,"Surplus",IF(ROUND(AE32,0)>0,"Deficit","")) ->  | AF33: =IF(ROUND(AF32,0)<0,"Surplus",IF(ROUND(AF32,0)>0,"Deficit","")) ->  | AG33: =IF(ROUND(AG32,0)<0,"Surplus",IF(ROUND(AG32,0)>0,"Deficit","")) ->  | AH33: =IF(ROUND(AH32,0)<0,"Surplus",IF(ROUND(AH32,0)>0,"Deficit","")) ->  | AI33: =IF(ROUND(AI32,0)<0,"Surplus",IF(ROUND(AI32,0)>0,"Deficit","")) ->  | AJ33: =IF(ROUND(AJ32,0)<0,"Surplus",IF(ROUND(AJ32,0)>0,"Deficit","")) ->  | AK33: =IF(ROUND(AK32,0)<0,"Surplus",IF(ROUND(AK32,0)>0,"Deficit","")) ->  | AL33: =IF(ROUND(AL32,0)<0,"Surplus",IF(ROUND(AL32,0)>0,"Deficit","")) ->  | AM33: =IF(ROUND(AM32,0)<0,"Surplus",IF(ROUND(AM32,0)>0,"Deficit","")) ->  | AN33: =IF(ROUND(AN32,0)<0,"Surplus",IF(ROUND(AN32,0)>0,"Deficit","")) ->  | AO33: =IF(ROUND(AO32,0)<0,"Surplus",IF(ROUND(AO32,0)>0,"Deficit","")) -> 
A34: Dry cows | B34: =(B19*B28*DaysInMonth(B32))/MEBase/1000 -> 13.63636364 | C34: =(C19*C28*DaysInMonth(C32))/MEBase/1000 -> 14.09090909 | D34: =(D19*D28*DaysInMonth(D32))/MEBase/1000 -> 13.63636364 | E34: =(E19*E28*DaysInMonth(E32))/11/1000 -> 14.09090909 | F34: 14.09090909 | G34: 12.72727273 | H34: 14.09090909 | I34: 13.63636364 | J34: 14.09090909 | K34: 13.63636364 | L34: 14.09090909 | M34: 14.09090909 | AQ34: FEED DEFICIT REMAINING (Aim for zero) | AR34: =B7 -> Sep | AS34: =C7 -> Oct | AT34: Nov | AU34: Dec | AV34: Jan | AW34: Feb | AX34: Mar | AY34: Apr | AZ34: May | BA34: Jun | BB34: Jul | BC34: Aug
A35: Yearling heifers | B35: =(B20*B29*DaysInMonth(B32))/MEBase/1000 -> 18.40909091 | C35: =(C20*C29*DaysInMonth(C32))/MEBase/1000 -> 19.02272727 | D35: =(D20*D29*DaysInMonth(D32))/MEBase/1000 -> 18.40909091 | E35: =(E20*E29*DaysInMonth(E32))/11/1000 -> 19.02272727 | F35: 19.02272727 | G35: 17.18181818 | H35: 19.02272727 | I35: 18.40909091 | J35: 19.02272727 | K35: 18.40909091 | L35: 19.02272727 | M35: 19.02272727 | O35: Other grazed forages | P35: =MEOtherText -> (assuming 11 MJ/kg DM) | AQ35: ="Tonnes DM "& MEBaseText -> Tonnes DM (assuming 11 MJ/kg DM) | AR35: =AD32-((AR11*MEBought/MEBase)+(AR16*MEBoughtLow/MEBase)+(AR21*MEBoughtLow/MEBase)+(AR26*MEBought/MEBase)) -> 
A36: Calves | B36: =(B21*B30*DaysInMonth(B32))/MEBase/1000 -> 16.36363636 | C36: =(C21*C30*DaysInMonth(C32))/MEBase/1000 -> 16.90909091 | D36: =(D21*D30*DaysInMonth(D32))/MEBase/1000 -> 16.36363636 | E36: =(E21*E30*DaysInMonth(E32))/11/1000 -> 16.90909091 | F36: 16.90909091 | G36: 15.27272727 | H36: 16.90909091 | I36: 16.36363636 | J36: 16.90909091 | K36: 16.36363636 | L36: 16.90909091 | M36: 16.90909091 | O36: Crop available (tn DM) | P36: 0 | Q36: 0 | R36: 0 | S36: 0 | T36: 0 | U36: 0 | V36: 0 | W36: 0 | X36: 0 | Y36: 0 | Z36: 0 | AA36: 0 | AR36: =IF(ROUND(AR35,0)<0,"Surplus",IF(ROUND(AR35,0)>0,"Deficit","")) ->  | AS36: =IF(ROUND(AS35,0)<0,"Surplus",IF(ROUND(AS35,0)>0,"Deficit","")) ->  | AT36: =IF(ROUND(AT35,0)<0,"Surplus",IF(ROUND(AT35,0)>0,"Deficit","")) ->  | AU36: =IF(ROUND(AU35,0)<0,"Surplus",IF(ROUND(AU35,0)>0,"Deficit","")) ->  | AV36: =IF(ROUND(AV35,0)<0,"Surplus",IF(ROUND(AV35,0)>0,"Deficit","")) ->  | AW36: =IF(ROUND(AW35,0)<0,"Surplus",IF(ROUND(AW35,0)>0,"Deficit","")) ->  | AX36: =IF(ROUND(AX35,0)<0,"Surplus",IF(ROUND(AX35,0)>0,"Deficit","")) ->  | AY36: =IF(ROUND(AY35,0)<0,"Surplus",IF(ROUND(AY35,0)>0,"Deficit","")) ->  | AZ36: =IF(ROUND(AZ35,0)<0,"Surplus",IF(ROUND(AZ35,0)>0,"Deficit","")) ->  | BA36: =IF(ROUND(BA35,0)<0,"Surplus",IF(ROUND(BA35,0)>0,"Deficit","")) ->  | BB36: =IF(ROUND(BB35,0)<0,"Surplus",IF(ROUND(BB35,0)>0,"Deficit","")) ->  | BC36: =IF(ROUND(BC35,0)<0,"Surplus",IF(ROUND(BC35,0)>0,"Deficit","")) -> 
O37: Utilisation: (Select from drop down list) | P37: Moderate | Q37: Moderate | R37: Moderate | S37: Moderate | T37: Moderate | U37: Moderate | V37: Moderate | W37: Moderate | X37: Moderate | Y37: Moderate | Z37: Moderate | AA37: Moderate
A38: TOTAL MONTHLY FEED DEMAND | B38: =B7 -> Sep | C38: =C7 -> Oct | D38: Nov | E38: Dec | F38: Jan | G38: Feb | H38: Mar | I38: Apr | J38: May | K38: Jun | L38: Jul | M38: Aug | O38: Percentage | P38: =IF(ISNA(VLOOKUP(P37,UtilisationCrop,2,FALSE)),0,VLOOKUP(P37,UtilisationCrop,2,FALSE)) -> 0.65 | Q38: 0.65 | R38: 0.65 | S38: 0.65 | T38: 0.65 | U38: 0.65 | V38: 0.65 | W38: 0.65 | X38: 0.65 | Y38: 0.65 | Z38: 0.65 | AA38: 0.65
A39: ="TOTAL tonnes DM req'd " & MEBaseText -> TOTAL tonnes DM req'd (assuming 11 MJ/kg DM) | B39: =SUM(B33:B36) -> 75.03409091 | C39: =SUM(C33:C36) -> 60.73181818 | D39: 63.525 | E39: 70.25727273 | F39: 74.57613636 | G39: =SUM(G33:G36) -> 70.99272727 | H39: =SUM(H33:H36) -> 82.32613636 | I39: =SUM(I33:I36) -> 82.99090909 | J39: 88.8925 | K39: 88.77272727 | L39: 94.27522727 | M39: 96.52272727 | O39: Tonnes DM available | P39: =P36*P38 -> 0 | Q39: =(Q36*Q38) -> 0 | R39: 0 | S39: 0 | T39: 0 | U39: 0 | V39: 0 | W39: 0 | X39: 0 | Y39: 0 | Z39: 0 | AA39: 0
AQ40: Revise your feed budget when circumstances change
O41: Home-grown higher quality fodder | P41: =MESilageText -> (assuming 10 MJ/kg DM) | AQ41: e.g. available feeds, number of animals to be fed.
O42: Home-grown fodder on hand (tn DM) | P42: 0 | Q42: 0 | R42: 0 | S42: 0 | T42: 50 | U42: 50 | V42: 50 | W42: 50 | X42: 50 | Y42: 50 | Z42: 50 | AA42: 50
O43: Wastage rate at feed-out | P43: 0.2 | Q43: 0.2 | R43: 0.2 | S43: 0.2 | T43: 0.2 | U43: 0.2 | V43: 0.2 | W43: 0.2 | X43: 0.2 | Y43: 0.2 | Z43: 0.2 | AA43: 0.2
O44: Tonnes DM available | P44: =(P42*(1-P43)) -> 0 | Q44: =(Q42*(1-Q43)) -> 0 | R44: 0 | S44: 0 | T44: 40 | U44: 40 | V44: 40 | W44: 40 | X44: 40 | Y44: =Y42*(1-Y43) -> 40 | Z44: 40 | AA44: 40
O46: Home-grown lower quality fodder | P46: =MEHayText -> (assuming 8 MJ/kg DM) | AQ46: e.g. available feeds, number of animals to be fed.
O47: Home-grown fodder on hand (tn DM) | P47: 0 | Q47: 0 | R47: 0 | S47: 0 | T47: 0 | U47: 0 | V47: 0 | W47: 0 | X47: 0 | Y47: 0 | Z47: 0 | AA47: 0
O48: Wastage rate at feed-out | P48: 0.2 | Q48: 0.2 | R48: 0.2 | S48: 0.2 | T48: 0.2 | U48: 0.2 | V48: 0.2 | W48: 0.2 | X48: 0.2 | Y48: 0.2 | Z48: 0.2 | AA48: 0.2
O49: Tonnes DM available | P49: =(P47*(1-P48)) -> 0 | Q49: =(Q47*(1-Q48)) -> 0 | R49: 0 | S49: =S47*(1-S48) -> 0 | T49: 0 | U49: =U47*(1-U48) -> 0 | V49: =V47*(1-V48) -> 0 | W49: 0 | X49: =X47*(1-X48) -> 0 | Y49: 0 | Z49: 0 | AA49: 0
A50: Feed quality
A51: Base feed quality used for dry matter calculations | O51: TOTAL tonnes home-grown DM available | P51: =P15+P24+P33+P39+P44+P49 ->  | Q51: =Q15+Q24+Q33+Q39+Q44+Q49 -> 
A52: Concentrate quality
A53: Pasture quality
A54: Other grazed forages quality | O54: TOTAL FEED DEFICIT | P54: =P7 -> Sep | Q54: =Q7 -> Oct | R54: Nov | S54: Dec | T54: Jan | U54: Feb | V54: Mar | W54: Apr | X54: May | Y54: Jun | Z54: Jul | AA54: Aug
A55: Home grown fodder higher quality (ie silage) | O55: ="Tonnes DM " & MEBaseText -> Tonnes DM (assuming 11 MJ/kg DM) | P55: =B39-((P15*(MEPasture/MEBase))+(P24*(MEPasture/MEBase))+(P33*(MEPasture/MEBase))+(P39*(MEother/MEBase))+(P44*(MESilage/MEBase))+(P49*(MEHay/MEBase))) -> 
A56: Home grown fodder lower quality (ie hay) | P56: =IF(ROUND(P55,0)<0,"Surplus",IF(ROUND(P55,0)>0,"Deficit","")) ->  | Q56: =IF(ROUND(Q55,0)<0,"Surplus",IF(ROUND(Q55,0)>0,"Deficit","")) -> 
A57: Bought-in fodder quality

Sheet Summary
A1: Feed Budget
A3: Version (2) May 2026
A5: FEED BUDGET summary
B6: =Worksheet!B7 -> Sep | C6: =Worksheet!C7 -> Oct | D6: =Worksheet!D7 -> Nov | E6: =Worksheet!E7 -> Dec | F6: =Worksheet!F7 -> Jan | G6: =Worksheet!G7 -> Feb | H6: =Worksheet!H7 -> Mar | I6: =Worksheet!I7 -> Apr | J6: =Worksheet!J7 -> May | K6: =Worksheet!K7 -> Jun | L6: =Worksheet!L7 -> Jul | M6: =Worksheet!M7 -> Aug
A7: MONTHLY FEED DEMAND
A8: Milking cows | B8: =Worksheet!B8 -> 50 | C8: =Worksheet!C8 -> 20 | D8: =Worksheet!D8 -> 30 | E8: =Worksheet!E8 -> 40 | F8: =Worksheet!F8 -> 50 | G8: =Worksheet!G8 -> 60 | H8: =Worksheet!H8 -> 70 | I8: =Worksheet!I8 -> 80 | J8: =Worksheet!J8 -> 90 | K8: =Worksheet!K8 -> 100 | L8: =Worksheet!L8 -> 110 | M8: =Worksheet!M8 -> 120
A9: Dry cows | B9: =Worksheet!B19 -> 50 | C9: =Worksheet!C19 -> 50 | D9: =Worksheet!D19 -> 50 | E9: =Worksheet!E19 -> 50 | F9: =Worksheet!F19 -> 50 | G9: =Worksheet!G19 -> 50 | H9: =Worksheet!H19 -> 50 | I9: =Worksheet!I19 -> 50 | J9: =Worksheet!J19 -> 50 | K9: =Worksheet!K19 -> 50 | L9: =Worksheet!L19 -> 50 | M9: =Worksheet!M19 -> 50
A10: Yearling heifers | B10: =Worksheet!B20 -> 75 | C10: =Worksheet!C20 -> 75 | D10: =Worksheet!D20 -> 75 | E10: =Worksheet!E20 -> 75 | F10: =Worksheet!F20 -> 75 | G10: =Worksheet!G20 -> 75 | H10: =Worksheet!H20 -> 75 | I10: =Worksheet!I20 -> 75 | J10: =Worksheet!J20 -> 75 | K10: =Worksheet!K20 -> 75 | L10: =Worksheet!L20 -> 75 | M10: =Worksheet!M20 -> 75
A11: Calves | B11: =Worksheet!B21 -> 100 | C11: =Worksheet!C21 -> 100 | D11: =Worksheet!D21 -> 100 | E11: =Worksheet!E21 -> 100 | F11: =Worksheet!F21 -> 100 | G11: =Worksheet!G21 -> 100 | H11: =Worksheet!H21 -> 100 | I11: =Worksheet!I21 -> 100 | J11: =Worksheet!J21 -> 100 | K11: =Worksheet!K21 -> 100 | L11: =Worksheet!L21 -> 100 | M11: =Worksheet!M21 -> 100
A12: ="Total tonnes DM req'd " & MEBaseText -> Total tonnes DM req'd (assuming 11 MJ/kg DM) | B12: =Worksheet!B39 -> 75.03409091 | C12: =Worksheet!C39 -> 60.73181818 | D12: =Worksheet!D39 -> 63.525 | E12: =Worksheet!E39 -> 70.25727273 | F12: =Worksheet!F39 -> 74.57613636 | G12: =Worksheet!G39 -> 70.99272727 | H12: =Worksheet!H39 -> 82.32613636 | I12: =Worksheet!I39 -> 82.99090909 | J12: =Worksheet!J39 -> 88.8925 | K12: =Worksheet!K39 -> 88.77272727 | L12: =Worksheet!L39 -> 94.27522727 | M12: =Worksheet!M39 -> 96.52272727
A13: LESS
A14: Home-grown Dry Matter available (tonnes DM)
A15: ="Pasture 1 " & MEPastureText -> Pasture 1 (assuming 11 MJ/kg DM) | B15: =Worksheet!P15 ->  | C15: =Worksheet!Q15 ->  | D15: =Worksheet!R15 ->  | E15: =Worksheet!S15 ->  | F15: =Worksheet!T15 ->  | G15: =Worksheet!U15 ->  | H15: =Worksheet!V15 ->  | I15: =Worksheet!W15 ->  | J15: =Worksheet!X15 ->  | K15: =Worksheet!Y15 ->  | L15: =Worksheet!Z15 ->  | M15: =Worksheet!AA15 -> 
A16: ="Pasture 2 " & MEPastureText -> Pasture 2 (assuming 11 MJ/kg DM) | B16: =Worksheet!P24 ->  | C16: =Worksheet!Q24 ->  | D16: =Worksheet!R24 ->  | E16: =Worksheet!S24 ->  | F16: =Worksheet!T24 ->  | G16: =Worksheet!U24 ->  | H16: =Worksheet!V24 ->  | I16: =Worksheet!W24 ->  | J16: =Worksheet!X24 ->  | K16: =Worksheet!Y24 ->  | L16: =Worksheet!Z24 ->  | M16: =Worksheet!AA24 -> 
A17: ="Pasture 3 " & MEPastureText -> Pasture 3 (assuming 11 MJ/kg DM) | B17: =Worksheet!P33 ->  | C17: =Worksheet!Q33 ->  | D17: =Worksheet!R33 ->  | E17: =Worksheet!S33 ->  | F17: =Worksheet!T33 ->  | G17: =Worksheet!U33 ->  | H17: =Worksheet!V33 ->  | I17: =Worksheet!W33 ->  | J17: =Worksheet!X33 ->  | K17: =Worksheet!Y33 ->  | L17: =Worksheet!Z33 ->  | M17: =Worksheet!AA33 -> 
A18: ="Other grazed forages " & MEOtherText -> Other grazed forages (assuming 11 MJ/kg DM) | B18: =Worksheet!P39 -> 0 | C18: =Worksheet!Q39 -> 0 | D18: =Worksheet!R39 -> 0 | E18: =Worksheet!S39 -> 0 | F18: =Worksheet!T39 -> 0 | G18: =Worksheet!U39 -> 0 | H18: =Worksheet!V39 -> 0 | I18: =Worksheet!W39 -> 0 | J18: =Worksheet!X39 -> 0 | K18: =Worksheet!Y39 -> 0 | L18: =Worksheet!Z39 -> 0 | M18: =Worksheet!AA39 -> 0
A19: ="Home-grown higher quality fodder " & MESilageText -> Home-grown higher quality fodder (assuming 10 MJ/kg DM) | B19: =Worksheet!P44 -> 0 | C19: =Worksheet!Q44 -> 0 | D19: =Worksheet!R44 -> 0 | E19: =Worksheet!S44 -> 0 | F19: =Worksheet!T44 -> 40 | G19: =Worksheet!U44 -> 40 | H19: =Worksheet!V44 -> 40 | I19: =Worksheet!W44 -> 40 | J19: =Worksheet!X44 -> 40 | K19: =Worksheet!Y44 -> 40 | L19: =Worksheet!Z44 -> 40 | M19: =Worksheet!AA44 -> 40
A20: ="Home-grown lower quality fodder " & MEHayText -> Home-grown lower quality fodder (assuming 8 MJ/kg DM) | B20: =Worksheet!P49 -> 0 | C20: =Worksheet!Q49 -> 0 | D20: =Worksheet!R49 -> 0 | E20: =Worksheet!S49 -> 0 | F20: =Worksheet!T49 -> 0 | G20: =Worksheet!U49 -> 0 | H20: =Worksheet!V49 -> 0 | I20: =Worksheet!W49 -> 0 | J20: =Worksheet!X49 -> 0 | K20: =Worksheet!Y49 -> 0 | L20: =Worksheet!Z49 -> 0 | M20: =Worksheet!AA49 -> 0
A21: TOTAL tonnes home-grown DM available | B21: =Worksheet!P51 ->  | C21: =Worksheet!Q51 ->  | D21: =Worksheet!R51 ->  | E21: =Worksheet!S51 ->  | F21: =Worksheet!T51 ->  | G21: =Worksheet!U51 ->  | H21: =Worksheet!V51 ->  | I21: =Worksheet!W51 ->  | J21: =Worksheet!X51 ->  | K21: =Worksheet!Y51 ->  | L21: =Worksheet!Z51 ->  | M21: =Worksheet!AA51 -> 
A22: EQUALS
A23: TOTAL FEED DEFICIT
A24: ="Tonnes DM " & MEBaseText -> Tonnes DM (assuming 11 MJ/kg DM) | B24: =Worksheet!P55 ->  | C24: =Worksheet!Q55 ->  | D24: =Worksheet!R55 ->  | E24: =Worksheet!S55 ->  | F24: =Worksheet!T55 ->  | G24: =Worksheet!U55 ->  | H24: =Worksheet!V55 ->  | I24: =Worksheet!W55 ->  | J24: =Worksheet!X55 ->  | K24: =Worksheet!Y55 ->  | L24: =Worksheet!Z55 ->  | M24: =Worksheet!AA55 -> 
A26: QUANTITIES OF BOUGHT-IN FEED REQUIRED EACH MONTH
A27: a) Grain / concentrates (tonnes DM) | B27: =Worksheet!B7 -> Sep | C27: =Worksheet!C7 -> Oct | D27: =Worksheet!D7 -> Nov | E27: =Worksheet!E7 -> Dec | F27: =Worksheet!F7 -> Jan | G27: =Worksheet!G7 -> Feb | H27: =Worksheet!H7 -> Mar | I27: =Worksheet!I7 -> Apr | J27: =Worksheet!J7 -> May | K27: =Worksheet!K7 -> Jun | L27: =Worksheet!L7 -> Jul | M27: =Worksheet!M7 -> Aug
A28: ="Milking cows " & MEConcText -> Milking cows (assuming 12 MJ/kg DM) | B28: =Worksheet!AD11 -> 7.35 | C28: =Worksheet!AE11 -> 3.038 | D28: =Worksheet!AF11 -> 4.41 | E28: =Worksheet!AG11 -> 6.076 | F28: =Worksheet!AH11 -> 7.595 | G28: =Worksheet!AI11 -> 8.232 | H28: =Worksheet!AJ11 -> 10.633 | I28: =Worksheet!AK11 -> 11.76 | J28: =Worksheet!AL11 -> 13.671 | K28: =Worksheet!AM11 -> 14.7 | L28: =Worksheet!AN11 -> 16.709 | M28: =Worksheet!AO11 -> 18.228
A29: ="Dry cows " & MEConcText -> Dry cows (assuming 12 MJ/kg DM) | B29: =Worksheet!AD16 -> 3.3 | C29: =Worksheet!AE16 -> 3.41 | D29: =Worksheet!AF16 -> 3.3 | E29: =Worksheet!AG16 -> 3.41 | F29: =Worksheet!AH16 -> 3.41 | G29: =Worksheet!AI16 -> 3.08 | H29: =Worksheet!AJ16 -> 3.41 | I29: =Worksheet!AK16 -> 3.3 | J29: =Worksheet!AL16 -> 3.41 | K29: =Worksheet!AM16 -> 3.3 | L29: =Worksheet!AN16 -> 3.41 | M29: =Worksheet!AO16 -> 3.41
A30: ="Yearling heifers " & MEConcText -> Yearling heifers (assuming 12 MJ/kg DM) | B30: =Worksheet!AD21 -> 4.05 | C30: =Worksheet!AE21 -> 4.185 | D30: =Worksheet!AF21 -> 4.05 | E30: =Worksheet!AG21 -> 4.185 | F30: =Worksheet!AH21 -> 4.185 | G30: =Worksheet!AI21 -> 3.78 | H30: =Worksheet!AJ21 -> 4.185 | I30: =Worksheet!AK21 -> 4.05 | J30: =Worksheet!AL21 -> 4.185 | K30: =Worksheet!AM21 -> 4.05 | L30: =Worksheet!AN21 -> 4.185 | M30: =Worksheet!AO21 -> 4.185
A31: ="Calves " & MEConcText -> Calves (assuming 12 MJ/kg DM) | B31: =Worksheet!AD26 -> 5.7 | C31: =Worksheet!AE26 -> 5.89 | D31: =Worksheet!AF26 -> 5.7 | E31: =Worksheet!AG26 -> 5.89 | F31: =Worksheet!AH26 -> 5.89 | G31: =Worksheet!AI26 -> 5.32 | H31: =Worksheet!AJ26 -> 5.89 | I31: =Worksheet!AK26 -> 5.7 | J31: =Worksheet!AL26 -> 5.89 | K31: =Worksheet!AM26 -> 5.7 | L31: =Worksheet!AN26 -> 5.89 | M31: =Worksheet!AO26 -> 5.89
A32: Total tonnes DM | B32: =Worksheet!AD29 -> 20.4 | C32: =Worksheet!AE29 -> 16.523 | D32: =Worksheet!AF29 -> 17.46 | E32: =Worksheet!AG29 -> 19.561 | F32: =Worksheet!AH29 -> 21.08 | G32: =Worksheet!AI29 -> 20.412 | H32: =Worksheet!AJ29 -> 24.118 | I32: =Worksheet!AK29 -> 24.81 | J32: =Worksheet!AL29 -> 27.156 | K32: =Worksheet!AM29 -> 27.75 | L32: =Worksheet!AN29 -> 30.194 | M32: =Worksheet!AO29 -> 31.713
A34: b) Bought-in fodder (tonnes DM) | B34: =Worksheet!B7 -> Sep | C34: =Worksheet!C7 -> Oct | D34: =Worksheet!D7 -> Nov | E34: =Worksheet!E7 -> Dec | F34: =Worksheet!F7 -> Jan | G34: =Worksheet!G7 -> Feb | H34: =Worksheet!H7 -> Mar | I34: =Worksheet!I7 -> Apr | J34: =Worksheet!J7 -> May | K34: =Worksheet!K7 -> Jun | L34: =Worksheet!L7 -> Jul | M34: =Worksheet!M7 -> Aug
A35: ="Milking cows " & MEBoughtText -> Milking cows (assuming 10 MJ/kg DM) | B35: =Worksheet!AR11 -> 7.5 | C35: =Worksheet!AS11 -> 2.48 | D35: =Worksheet!AT11 -> 3.6 | E35: =Worksheet!AU11 -> 4.96 | F35: =Worksheet!AV11 -> 6.2 | G35: =Worksheet!AW11 -> 6.72 | H35: =Worksheet!AX11 -> 8.68 | I35: =Worksheet!AY11 -> 9.6 | J35: =Worksheet!AZ11 -> 11.16 | K35: =Worksheet!BA11 -> 12 | L35: =Worksheet!BB11 -> 13.64 | M35: =Worksheet!BC11 -> 14.88
A36: ="Dry cows " & MEBoughtLowText -> Dry cows (assuming 9 MJ/kg DM) | B36: =Worksheet!AR16 -> 6 | C36: =Worksheet!AS16 -> 6.2 | D36: =Worksheet!AT16 -> 6 | E36: =Worksheet!AU16 -> 6.2 | F36: =Worksheet!AV16 -> 6.2 | G36: =Worksheet!AW16 -> 5.6 | H36: =Worksheet!AX16 -> 6.2 | I36: =Worksheet!AY16 -> 6 | J36: =Worksheet!AZ16 -> 6.2 | K36: =Worksheet!BA16 -> 6 | L36: =Worksheet!BB16 -> 6.2 | M36: =Worksheet!BC16 -> 6.2
A37: ="Yearling heifers " & MEBoughtLowText -> Yearling heifers (assuming 9 MJ/kg DM) | B37: =Worksheet!AR21 -> 9 | C37: =Worksheet!AS21 -> 13.95 | D37: =Worksheet!AT21 -> 13.5 | E37: =Worksheet!AU21 -> 13.95 | F37: =Worksheet!AV21 -> 13.95 | G37: =Worksheet!AW21 -> 12.6 | H37: =Worksheet!AX21 -> 13.95 | I37: =Worksheet!AY21 -> 13.5 | J37: =Worksheet!AZ21 -> 13.95 | K37: =Worksheet!BA21 -> 13.5 | L37: =Worksheet!BB21 -> 13.95 | M37: =Worksheet!BC21 -> 13.95
A38: ="Calves " & MEBoughtText -> Calves (assuming 10 MJ/kg DM) | B38: =Worksheet!AR26 -> 12 | C38: =Worksheet!AS26 -> 12.4 | D38: =Worksheet!AT26 -> 12 | E38: =Worksheet!AU26 -> 12.4 | F38: =Worksheet!AV26 -> 12.4 | G38: =Worksheet!AW26 -> 11.2 | H38: =Worksheet!AX26 -> 12.4 | I38: =Worksheet!AY26 -> 12 | J38: =Worksheet!AZ26 -> 12.4 | K38: =Worksheet!BA26 -> 12 | L38: =Worksheet!BB26 -> 12.4 | M38: =Worksheet!BC26 -> 12.4
A39: Total tonnes DM | B39: =Worksheet!AR29 -> 34.5 | C39: =Worksheet!AS29 -> 35.03 | D39: =Worksheet!AT29 -> 35.1 | E39: =Worksheet!AU29 -> 37.51 | F39: =Worksheet!AV29 -> 38.75 | G39: =Worksheet!AW29 -> 36.12 | H39: =Worksheet!AX29 -> 41.23 | I39: =Worksheet!AY29 -> 41.1 | J39: =Worksheet!AZ29 -> 43.71 | K39: =Worksheet!BA29 -> 43.5 | L39: =Worksheet!BB29 -> 46.19 | M39: =Worksheet!BC29 -> 47.43
A41: FEED DEFICIT REMAINING (Aim for zero) | B41: =Worksheet!B7 -> Sep | C41: =Worksheet!C7 -> Oct | D41: =Worksheet!D7 -> Nov | E41: =Worksheet!E7 -> Dec | F41: =Worksheet!F7 -> Jan | G41: =Worksheet!G7 -> Feb | H41: =Worksheet!H7 -> Mar | I41: =Worksheet!I7 -> Apr | J41: =Worksheet!J7 -> May | K41: =Worksheet!K7 -> Jun | L41: =Worksheet!L7 -> Jul | M41: =Worksheet!M7 -> Aug
A42: ="Tonnes DM " & MEBaseText -> Tonnes DM (assuming 11 MJ/kg DM) | B42: =Worksheet!AR35 ->  | C42: =Worksheet!AS35 ->  | D42: =Worksheet!AT35 ->  | E42: =Worksheet!AU35 ->  | F42: =Worksheet!AV35 ->  | G42: =Worksheet!AW35 ->  | H42: =Worksheet!AX35 ->  | I42: =Worksheet!AY35 ->  | J42: =Worksheet!AZ35 ->  | K42: =Worksheet!BA35 ->  | L42: =Worksheet!BB35 ->  | M42: =Worksheet!BC35 -> 
B43: =IF(ROUND(B42,0)<0,"Surplus",IF(ROUND(B42,0)>0,"Deficit","")) ->  | C43: =IF(ROUND(C42,0)<0,"Surplus",IF(ROUND(C42,0)>0,"Deficit","")) -> 
A44: Revise your feed budget when circumstances change
A45: e.g. available feeds, number of animals to be fed.
A47: Disclaimer:
A48: This tool is published for your information. It is published with due care and attention to accuracy, but Dairy Australia makes no warranty with regard to the accuracy and reliability of the information provided, and accepts no responsibility for loss arising in any way from or in connection with errors or omissions in any information, advice or use of the information. The tool is a guide only and professional advice should be sought regarding your specific circumstances. © Copyright Dairy Australia 2018

Sheet Working (hidden)
A1: All | B1: Current | D1: All | E1: All | G1: Current | H1: Current | J1: Current | K1: Current | M1: All | N1: Offset | P1: All | Q1: Percent | S1: All | T1: Percent | V1: Start seasons | X1: Current | Y1: On
A2: Region | B2: 3 | D2: Region | E2: Location | G2: Locations | H2: 5 | J2: Pasture type | K2: 1 | M2: Growth rate | P2: Pasture utilisation | S2: Crop utilisation | V2: Start in Autumn | X2: 3 | Y2: TRUE
A3: Gippsland | D3: Gippsland | E3: Athlone | G3: Cobram | J3: Lucerne - grazed, dryland | K3: 0 | M3: Poor | N3: 6 | P3: Low | Q3: 0.55 | S3: Low | T3: 0.5 | V3: Start in Winter | Y3: TRUE
A4: South West Victoria | D4: Gippsland | E4: Ellinbank | G4: Cohuna | J4: Lucerne - grazed, irrigated | K4: 0 | M4: Fair | N4: 5 | P4: Moderate | Q4: 0.7 | S4: Moderate | T4: 0.65 | V4: Start in Spring | Y4: TRUE
A5: Northern Victoria | D5: Gippsland | E5: Fish Creek | G5: Kyabram | J5: Ryegrass - Dryland - early annual | M5: Good | N5: 4 | P5: High | Q5: 0.85 | S5: High | T5: 0.8 | V5: Start in Summer | Y5: TRUE
A6: Tasmania | D6: Gippsland | E6: Leongatha | G6: Lockington | J6: Ryegrass - Dryland - late annual | M6: Very good | N6: 3
A7: South Australia | D7: Gippsland | E7: Maffra | G7: Shepparton | J7: Ryegrass - Dryland - Perennial | M7: Exceptional | N7: 2 | X7: Number seasons: | Y7: =COUNTIF(Y2:Y5,TRUE) -> 4
A8: Western Australia | D8: Gippsland | E8: Morwell | G8: Swan Hill | J8: Ryegrass - Irrigated - early annual
A9: New South Wales | D9: Gippsland | E9: Neerim | G9: Tallangatta | J9: Ryegrass - Irrigated - late annual | P9: This section is used to calculate young stock numbers for each season but exclude seasons that are not visible.
A10: Queensland | D10: Gippsland | E10: Orbost | J10: Ryegrass - Irrigated - Perennial | P10: Stock Numbers | Q10: Autumn | R10: Winter | S10: Spring | T10: Summer | U10: Total
D11: Gippsland | E11: Rosedale | J11: Tall Fescue - Irrigated | P11: Season offset | Q11: =VLOOKUP(SeasonStart,$Q$19:$U$22,2,FALSE) -> 6 | R11: =VLOOKUP(SeasonStart,$Q$19:$U$22,3,FALSE) -> 9 | S11: =VLOOKUP(SeasonStart,$Q$19:$U$22,4,FALSE) -> 0 | T11: =VLOOKUP(SeasonStart,$Q$19:$U$22,5,FALSE) -> 3
D12: Gippsland | E12: Traralgon | J12: Other | P12: Season on/off | Q12: =IF(SeasonAutumn,1,0) -> 1 | R12: =IF(SeasonWinter,1,0) -> 1 | S12: =IF(SeasonSpring,1,0) -> 1 | T12: =IF(SeasonSummer,1,0) -> 1
D13: Gippsland | E13: Wonthaggi | P13: Dry cows | Q13: =SUM(OFFSET(Worksheet!$B19:$D19,0,Q$11))*Q$12 -> 150 | R13: =SUM(OFFSET(Worksheet!$B19:$D19,0,R$11))*R$12 -> 150 | S13: =SUM(OFFSET(Worksheet!$B19:$D19,0,S$11))*S$12 -> 150 | T13: =SUM(OFFSET(Worksheet!$B19:$D19,0,T$11))*T$12 -> 150 | U13: =SUM(Q13:T13) -> 600
D14: Gippsland | E14: Yarram | P14: Yearling heifers | Q14: =SUM(OFFSET(Worksheet!$B20:$D20,0,Q$11))*Q$12 -> 225 | R14: =SUM(OFFSET(Worksheet!$B20:$D20,0,R$11))*R$12 -> 225 | S14: =SUM(OFFSET(Worksheet!$B20:$D20,0,S$11))*S$12 -> 225 | T14: =SUM(OFFSET(Worksheet!$B20:$D20,0,T$11))*T$12 -> 225 | U14: =SUM(Q14:T14) -> 900
D15: South West Victoria | E15: Cobden | P15: Calves | Q15: =SUM(OFFSET(Worksheet!$B21:$D21,0,Q$11))*Q$12 -> 300 | R15: =SUM(OFFSET(Worksheet!$B21:$D21,0,R$11))*R$12 -> 300 | S15: =SUM(OFFSET(Worksheet!$B21:$D21,0,S$11))*S$12 -> 300 | T15: =SUM(OFFSET(Worksheet!$B21:$D21,0,T$11))*T$12 -> 300 | U15: 1200
D16: South West Victoria | E16: Colac
D17: South West Victoria | E17: Heywood | P17: Stock number seasonal offsets | R17: Offset
D18: South West Victoria | E18: Koroit | P18: Start | Q18: DropDown | R18: Autumn | S18: Winter | T18: Spring | U18: Summer
D19: South West Victoria | E19: Nullawarre | P19: Autumn | Q19: 1 | R19: 0 | S19: 3 | T19: 6 | U19: 9
D20: South West Victoria | E20: Simpson | P20: Winter | Q20: 2 | R20: 9 | S20: 0 | T20: 3 | U20: 6
D21: South West Victoria | E21: Terang | P21: Spring | Q21: 3 | R21: 6 | S21: 9 | T21: 0 | U21: 3
D22: South West Victoria | E22: Timboon | P22: Summer | Q22: 4 | R22: 3 | S22: 6 | T22: 9 | U22: 0
D23: Northern Victoria | E23: Cobram
D24: Northern Victoria | E24: Cohuna | P24: Modification date and time
D25: Northern Victoria | E25: Kyabram | P25: Last modified: 10/01/2020 16:37
D26: Northern Victoria | E26: Lockington
D27: Northern Victoria | E27: Shepparton
D28: Northern Victoria | E28: Swan Hill | P28: Base feed quality drop down | R28: 1 | S28: =IF(R28=1,11,10) -> 11 | T28: ="(assuming " & TEXT(MEBase,"##") & " MJ/kg DM)" -> (assuming 11 MJ/kg DM)
D29: Northern Victoria | E29: Tallangatta | P29: Normal (11 MJ/kg DM)
D30: Tasmania | E30: Burnie | P30: Poor season (10 MJ/kg DM)
D31: Tasmania | E31: Cressy
D32: Tasmania | E32: Deloraine | P32: Concentrate quality drop down | R32: 2 | S32: =IF(R32=1,13,IF(R32=2,12,11)) -> 12 | T32: ="(assuming " & TEXT(MEConc,"##") & " MJ/kg DM)" -> (assuming 12 MJ/kg DM)
D33: Tasmania | E33: King Island | P33: High (13 MJ/kg DM)
D34: Tasmania | E34: Ouse | P34: Typical (12 MJ/kg DM)
D35: Tasmania | E35: Scottsdale | P35: Low (11 MJ/kg DM)
D36: Tasmania | E36: Smithton
D37: South Australia | E37: Meningie | P37: Pasture quality drop down | R37: 2 | S37: =IF(R37=1,12,IF(R37=2,11,10)) -> 11 | T37: ="(assuming " & TEXT(MEPasture,"##") & " MJ/kg DM)" -> (assuming 11 MJ/kg DM)
D38: South Australia | E38: Mt. Compass | P38: High (12 MJ/kg DM)
D39: South Australia | E39: Mt. Gambier | P39: Typical (11 MJ/kg DM)
D40: South Australia | E40: Murray Bridge | P40: Low (10 MJ/kg DM)
D41: South Australia | E41: Nuriootpa
D42: Western Australia | E42: Capel | P42: Other grazed forages drop down | R42: 1 | S42: =IF(R42=1,11,IF(R42=2,10,9)) -> 11 | T42: ="(assuming " & TEXT(MEother,"##") & " MJ/kg DM)" -> (assuming 11 MJ/kg DM)
D43: Western Australia | E43: Denmark | P43: Typical (11 MJ/kg DM)
D44: Western Australia | E44: Harvey | P44: Low (10 MJ/kg DM)
D45: Western Australia | E45: Margaret River | P45: Very low (9 MJ/kg DM)
D46: New South Wales | E46: Bega
D47: New South Wales | E47: Bellingen | P47: High quality fodder drop down | R47: 2 | S47: =IF(R47=1,11,IF(R47=2,10,9)) -> 10 | T47: ="(assuming " & TEXT(MESilage,"##") & " MJ/kg DM)" -> (assuming 10 MJ/kg DM)
D48: New South Wales | E48: Camden | P48: High (11 MJ/kg DM)
D49: New South Wales | E49: Casino | P49: Typical (10 MJ/kg DM)
D50: New South Wales | E50: Deniliquin | P50: Low (9 MJ/kg DM)
D51: New South Wales | E51: Denman
D52: New South Wales | E52: Nowra | P52: Low quality fodder drop down | R52: 2 | S52: =IF(R52=1,9,IF(R52=2,8,7)) -> 8 | T52: ="(assuming " & TEXT(MEHay,"##") & " MJ/kg DM)" -> (assuming 8 MJ/kg DM)
D53: New South Wales | E53: Tamworth | P53: High (9 MJ/kg DM)
D54: New South Wales | E54: Taree | P54: Typical (8 MJ/kg DM)
D55: New South Wales | E55: Tocal | P55: Low (7 MJ/kg DM)
D56: New South Wales | E56: Wagga
D57: Queensland | E57: Beaudesert | P57: Bought-in fodder drop down | R57: 2 | S57: =IF(R57=1,11,IF(R57=2,10,9)) -> 10 | T57: ="(assuming " & TEXT(MEBought,"##") & " MJ/kg DM)" -> (assuming 10 MJ/kg DM)
D58: Queensland | E58: Gatton | P58: High (11 MJ/kg DM) | S58: =MEBought-1 -> 9 | T58: ="(assuming " & TEXT(MEBoughtLow,"##") & " MJ/kg DM)" -> (assuming 9 MJ/kg DM)
D59: Queensland | E59: Gympie | P59: Typical (10 MJ/kg DM)
D60: Queensland | E60: Malanda | P60: Low (9 MJ/kg DM)
D61: Queensland | E61: Nanango
D62: Queensland | E62: Oakey
D63: Queensland | E63: Rockhampton
D64: Queensland | E64: Warwick

Sheet DairyMod GR data (hidden)
A1: Region | B1: Location ID | C1: Feed ID | D1: Month | E1: Index | F1: 90th % (Exceptional) | G1: 75th % (Very Good) | H1: 50th % (Good) | I1: 25th % (Fair) | J1: 10th % (Poor)
A2: Gippsland | B2: Athlone | C2: Chicory | D2: Jan | E2: =TRIM(A2)&TRIM(B2)&TRIM(C2)&TRIM(D2) -> GippslandAthloneChicoryJan | F2: 85.25951663 | G2: 75.82717874 | H2: 40.34529085 | I2: 22.33964291 | J2: 10.86603688
A3: Gippsland | B3: Athlone | C3: Chicory | D3: Feb | E3: GippslandAthloneChicoryFeb | F3: 63.64314144 | G3: 52.00602204 | H3: 26.12411625 | I3: 11.99586985 | J3: 0.9985806474
A4: Gippsland | B4: Athlone | C4: Chicory | D4: Mar | E4: GippslandAthloneChicoryMar | F4: 100.6906476 | G4: 63.66886704 | H4: 42.13326571 | I4: 22.31433943 | J4: 4.089293704
A5: Gippsland | B5: Athlone | C5: Chicory | D5: Apr | E5: GippslandAthloneChicoryApr | F5: 84.94499048 | G5: 68.06648549 | H5: 46.78256067 | I5: 25.04345644 | J5: 14.03575917
A6: Gippsland | B6: Athlone | C6: Chicory | D6: May | E6: GippslandAthloneChicoryMay | F6: 47.65916877 | G6: 38.59806953 | H6: 27.46881362 | I6: 15.93216832 | J6: 6.519912451
A7: Gippsland | B7: Athlone | C7: Chicory | D7: Jun | E7: GippslandAthloneChicoryJun | F7: 17.24714857 | G7: 10.67369164 | H7: 5.413211409 | I7: 2.148463929 | J7: 0.3939272626
A8: Gippsland | B8: Athlone | C8: Chicory | D8: Jul | E8: GippslandAthloneChicoryJul | F8: 10.82899246 | G8: 4.763935597 | H8: 1.165825875 | I8: 0.4871424129 | J8: 0
A9: Gippsland | B9: Athlone | C9: Chicory | D9: Aug | E9: GippslandAthloneChicoryAug | F9: 12.0950388 | G9: 7.271056406 | H9: 3.708412601 | I9: 1.316136891 | J9: 0.4584810149
A10: Gippsland | B10: Athlone | C10: Chicory | D10: Sep | E10: GippslandAthloneChicorySep | F10: 33.54012281 | G10: 26.12981016 | H10: 14.63994595 | I10: 8.673924643 | J10: 6.233429642
A11: Gippsland | B11: Athlone | C11: Chicory | D11: Oct | E11: GippslandAthloneChicoryOct | F11: 72.6301354 | G11: 58.30506679 | H11: 49.77237062 | I11: 26.89275489 | J11: 19.63342337
A12: Gippsland | B12: Athlone | C12: Chicory | D12: Nov | E12: GippslandAthloneChicoryNov | F12: 109.4023565 | G12: 98.09532636 | H12: 81.18950577 | I12: 56.06810129 | J12: 52.06222751
A13: Gippsland | B13: Athlone | C13: Chicory | D13: Dec | E13: GippslandAthloneChicoryDec | F13: 117.5806241 | G13: 104.6864109 | H13: 77.28216864 | I13: 52.560633 | J13: 32.29839182
A14: Gippsland | B14: Athlone | C14: Lucerne - grazed, dryland | D14: Jan | E14: GippslandAthloneLucerne - grazed, drylandJan | F14: 66.99872984 | G14: 60.553125 | H14: 44.078125 | I14: 24.3625 | J14: 16.338125
A15: Gippsland | B15: Athlone | C15: Lucerne - grazed, dryland | D15: Feb | E15: GippslandAthloneLucerne - grazed, drylandFeb | F15: 60.53310345 | G15: 45.01034483 | H15: 33.86 | I15: 17.55517241 | J15: 6.066305419
A16: Gippsland | B16: Athlone | C16: Lucerne - grazed, dryland | D16: Mar | E16: GippslandAthloneLucerne - grazed, drylandMar | F16: 61.56092742 | G16: 49.559375 | H16: 26.66875 | I16: 12.734375 | J16: 7.406875
A17: Gippsland | B17: Athlone | C17: Lucerne - grazed, dryland | D17: Apr | E17: GippslandAthloneLucerne - grazed, drylandApr | F17: 49.10733333 | G17: 37.33870968 | H17: 22.15 | I17: 14.53870968 | J17: 12.14258065
A18: Gippsland | B18: Athlone | C18: Lucerne - grazed, dryland | D18: May | E18: GippslandAthloneLucerne - grazed, drylandMay | F18: 38.90024194 | G18: 34.95806452 | H18: 23.96875 | I18: 16.465625 | J18: 5.25125
A19: Gippsland | B19: Athlone | C19: Lucerne - grazed, dryland | D19: Jun | E19: GippslandAthloneLucerne - grazed, drylandJun | F19: 27.15133333 | G19: 24.04516129 | H19: 11.02666667 | I19: 5.716129032 | J19: 2.134580645
A20: Gippsland | B20: Athlone | C20: Lucerne - grazed, dryland | D20: Jul | E20: GippslandAthloneLucerne - grazed, drylandJul | F20: 39.87806452 | G20: 35.446875 | H20: 28.26774194 | I20: 22.61935484 | J20: 16.5175
A21: Gippsland | B21: Athlone | C21: Lucerne - grazed, dryland | D21: Aug | E21: GippslandAthloneLucerne - grazed, drylandAug | F21: 51.378125 | G21: 36.303125 | H21: 22.678125 | I21: 15.50967742 | J21: 11.46125
A22: Gippsland | B22: Athlone | C22: Lucerne - grazed, dryland | D22: Sep | E22: GippslandAthloneLucerne - grazed, drylandSep | F22: 95.52266667 | G22: 91.11333333 | H22: 78.18666667 | I22: 56.77741935 | J22: 41.47133333
A23: Gippsland | B23: Athlone | C23: Lucerne - grazed, dryland | D23: Oct | E23: GippslandAthloneLucerne - grazed, drylandOct | F23: 96.900625 | G23: 77.4516129 | H23: 57.7875 | I23: 50.334375 | J23: 43.65625
A24: Gippsland | B24: Athlone | C24: Lucerne - grazed, dryland | D24: Nov | E24: GippslandAthloneLucerne - grazed, drylandNov | F24: 119.3754839 | G24: 114.6451613 | H24: 102.87 | I24: 69.31333333 | J24: 56.26516129
A25: Gippsland | B25: Athlone | C25: Lucerne - grazed, dryland | D25: Dec | E25: GippslandAthloneLucerne - grazed, drylandDec | F25: 100.0367742 | G25: 83.59354839 | H25: 61.75625 | I25: 51.928125 | J25: 38.34875
A26: Gippsland | B26: Athlone | C26: Lucerne - grazed, irrigated | D26: Jan | E26: GippslandAthloneLucerne - grazed, irrigatedJan | F26: 105.219375 | G26: 89.790625 | H26: 81.03125 | I26: 71.884375 | J26: 65.600625
A27: Gippsland | B27: Athlone | C27: Lucerne - grazed, irrigated | D27: Feb | E27: GippslandAthloneLucerne - grazed, irrigatedFeb | F27: 95.83843678 | G27: 86.87241379 | H27: 73.64827586 | I27: 64.91034483 | J27: 54.90271264
A28: Gippsland | B28: Athlone | C28: Lucerne - grazed, irrigated | D28: Mar | E28: GippslandAthloneLucerne - grazed, irrigatedMar | F28: 71.968125 | G28: 66.16129032 | H28: 59.86875 | I28: 48.246875 | J28: 43.04314516
A29: Gippsland | B29: Athlone | C29: Lucerne - grazed, irrigated | D29: Apr | E29: GippslandAthloneLucerne - grazed, irrigatedApr | F29: 56.81064516 | G29: 41.33548387 | H29: 27.41612903 | I29: 18.56333333 | J29: 15.28193548
A30: Gippsland | B30: Athlone | C30: Lucerne - grazed, irrigated | D30: May | E30: GippslandAthloneLucerne - grazed, irrigatedMay | F30: 38.84943548 | G30: 35 | H30: 23.953125 | I30: 16.721875 | J30: 6.073125
A31: Gippsland | B31: Athlone | C31: Lucerne - grazed, irrigated | D31: Jun | E31: GippslandAthloneLucerne - grazed, irrigatedJun | F31: 27.03066667 | G31: 23.99032258 | H31: 11.01333333 | I31: 5.819354839 | J31: 2.139268817
A32: Gippsland | B32: Athlone | C32: Lucerne - grazed, irrigated | D32: Jul | E32: GippslandAthloneLucerne - grazed, irrigatedJul | F32: 39.85032258 | G32: 35.459375 | H32: 28.26129032 | I32: 22.58709677 | J32: 16.5
A33: Gippsland | B33: Athlone | C33: Lucerne - grazed, irrigated | D33: Aug | E33: GippslandAthloneLucerne - grazed, irrigatedAug | F33: 51.3425 | G33: 36.30625 | H33: 22.66875 | I33: 15.48709677 | J33: 11.47375
A34: Gippsland | B34: Athlone | C34: Lucerne - grazed, irrigated | D34: Sep | E34: GippslandAthloneLucerne - grazed, irrigatedSep | F34: 95.54933333 | G34: 91.11333333 | H34: 78.25333333 | I34: 56.78064516 | J34: 41.482
A35: Gippsland | B35: Athlone | C35: Lucerne - grazed, irrigated | D35: Oct | E35: GippslandAthloneLucerne - grazed, irrigatedOct | F35: 97.136875 | G35: 79.51612903 | H35: 57.7875 | I35: 50.334375 | J35: 43.759375
A36: Gippsland | B36: Athlone | C36: Lucerne - grazed, irrigated | D36: Nov | E36: GippslandAthloneLucerne - grazed, irrigatedNov | F36: 131.8363226 | G36: 125.0741935 | H36: 113.8366667 | I36: 91.71290323 | J36: 75.10645161
A37: Gippsland | B37: Athlone | C37: Lucerne - grazed, irrigated | D37: Dec | E37: GippslandAthloneLucerne - grazed, irrigatedDec | F37: 114.7924194 | G37: 108.5580645 | H37: 96.040625 | I37: 74.83125 | J37: 62.44256048
A38: Gippsland | B38: Athlone | C38: Plantain | D38: Jan | E38: GippslandAthlonePlantainJan | F38: 58.82604574 | G38: 40.7035194 | H38: 12.63321966 | I38: 5.536589317 | J38: 0
A39: Gippsland | B39: Athlone | C39: Plantain | D39: Feb | E39: GippslandAthlonePlantainFeb | F39: 28.62525673 | G39: 17.54629087 | H39: 4.924031629 | I39: 0 | J39: 0
A40: Gippsland | B40: Athlone | C40: Plantain | D40: Mar | E40: GippslandAthlonePlantainMar | F40: 42.90556224 | G40: 17.77824317 | H40: 8.697019331 | I40: 1.746731858 | J40: 0.121788395
A41: Gippsland | B41: Athlone | C41: Plantain | D41: Apr | E41: GippslandAthlonePlantainApr | F41: 56.0479025 | G41: 50.0728035 | H41: 37.48662031 | I41: 13.42151595 | J41: 1.096175573
A42: Gippsland | B42: Athlone | C42: Plantain | D42: May | E42: GippslandAthlonePlantainMay | F42: 50.4520402 | G42: 48.75271905 | H42: 43.54626766 | I42: 35.61030234 | J42: 24.65030316
A43: Gippsland | B43: Athlone | C43: Plantain | D43: Jun | E43: GippslandAthlonePlantainJun | F43: 51.90998718 | G43: 48.93206689 | H43: 44.86444346 | I43: 39.64775832 | J43: 34.48765511
A44: Gippsland | B44: Athlone | C44: Plantain | D44: Jul | E44: GippslandAthlonePlantainJul | F44: 59.99034578 | G44: 57.35816156 | H44: 55.47570069 | I44: 52.58323916 | J44: 50.55092703
A45: Gippsland | B45: Athlone | C45: Plantain | D45: Aug | E45: GippslandAthlonePlantainAug | F45: 77.57306034 | G45: 75.36559763 | H45: 71.57670544 | I45: 69.75568993 | J45: 67.93946349
A46: Gippsland | B46: Athlone | C46: Plantain | D46: Sep | E46: GippslandAthlonePlantainSep | F46: 89.92349701 | G46: 86.46290493 | H46: 83.37206395 | I46: 81.092114 | J46: 78.58712822
A47: Gippsland | B47: Athlone | C47: Plantain | D47: Oct | E47: GippslandAthlonePlantainOct | F47: 102.0670899 | G47: 98.96494656 | H47: 95.06092711 | I47: 90.28356103 | J47: 84.38724853
A48: Gippsland | B48: Athlone | C48: Plantain | D48: Nov | E48: GippslandAthlonePlantainNov | F48: 95.91505526 | G48: 90.90519657 | H48: 78.68213085 | I48: 62.34446329 | J48: 36.30801835
A49: Gippsland | B49: Athlone | C49: Plantain | D49: Dec | E49: GippslandAthlonePlantainDec | F49: 82.27832393 | G49: 68.16447328 | H49: 39.57479386 | I49: 15.77709813 | J49: 2.354635231
A50: Gippsland | B50: Athlone | C50: Ryegrass - Dryland - early annual | D50: Jan | E50: GippslandAthloneRyegrass - Dryland - early annualJan | F50: 0 | G50: 0 | H50: 0 | I50: 0 | J50: 0
A51: Gippsland | B51: Athlone | C51: Ryegrass - Dryland - early annual | D51: Feb | E51: GippslandAthloneRyegrass - Dryland - early annualFeb | F51: 0 | G51: 0 | H51: 0 | I51: 0 | J51: 0
A52: Gippsland | B52: Athlone | C52: Ryegrass - Dryland - early annual | D52: Mar | E52: GippslandAthloneRyegrass - Dryland - early annualMar | F52: 6.053868041 | G52: 5.799270288 | H52: 5.447847059 | I52: 5.31600643 | J52: 4.896894157
A53: Gippsland | B53: Athlone | C53: Ryegrass - Dryland - early annual | D53: Apr | E53: GippslandAthloneRyegrass - Dryland - early annualApr | F53: 40.16406209 | G53: 38.75037165 | H53: 36.23281015 | I53: 33.55773942 | J53: 27.58511712
A54: Gippsland | B54: Athlone | C54: Ryegrass - Dryland - early annual | D54: May | E54: GippslandAthloneRyegrass - Dryland - early annualMay | F54: 58.33388493 | G54: 56.03643197 | H54: 54.06176424 | I54: 50.60382615 | J54: 46.65740276
A55: Gippsland | B55: Athlone | C55: Ryegrass - Dryland - early annual | D55: Jun | E55: GippslandAthloneRyegrass - Dryland - early annualJun | F55: 27.67417556 | G55: 21.14948112 | H55: 15.58221644 | I55: 13.19505158 | J55: 10.19521783
A56: Gippsland | B56: Athlone | C56: Ryegrass - Dryland - early annual | D56: Jul | E56: GippslandAthloneRyegrass - Dryland - early annualJul | F56: 25.67289083 | G56: 23.50358987 | H56: 20.08328576 | I56: 16.1731533 | J56: 13.52949621
A57: Gippsland | B57: Athlone | C57: Ryegrass - Dryland - early annual | D57: Aug | E57: GippslandAthloneRyegrass - Dryland - early annualAug | F57: 45.30619144 | G57: 41.17527016 | H57: 36.78485933 | I57: 32.32936325 | J57: 27.77759184
A58: Gippsland | B58: Athlone | C58: Ryegrass - Dryland - early annual | D58: Sep | E58: GippslandAthloneRyegrass - Dryland - early annualSep | F58: 50.63035943 | G58: 45.71955609 | H58: 39.7735254 | I58: 33.70963225 | J58: 30.86394264
A59: Gippsland | B59: Athlone | C59: Ryegrass - Dryland - early annual | D59: Oct | E59: GippslandAthloneRyegrass - Dryland - early annualOct | F59: 70.66883865 | G59: 66.17493617 | H59: 62.63190331 | I59: 57.19068512 | J59: 54.19287508
A60: Gippsland | B60: Athlone | C60: Ryegrass - Dryland - early annual | D60: Nov | E60: GippslandAthloneRyegrass - Dryland - early annualNov | F60: 16.6269111 | G60: 14.78504994 | H60: 10.52867583 | I60: 5.75401773 | J60: 2.14665831
A61: Gippsland | B61: Athlone | C61: Ryegrass - Dryland - early annual | D61: Dec | E61: GippslandAthloneRyegrass - Dryland - early annualDec | F61: 0 | G61: 0 | H61: 0 | I61: 0 | J61: 0
A62: Gippsland | B62: Athlone | C62: Ryegrass - Dryland - late annual | D62: Jan | E62: GippslandAthloneRyegrass - Dryland - late annualJan | F62: 0 | G62: 0 | H62: 0 | I62: 0 | J62: 0
A63: Gippsland | B63: Athlone | C63: Ryegrass - Dryland - late annual | D63: Feb | E63: GippslandAthloneRyegrass - Dryland - late annualFeb | F63: 0 | G63: 0 | H63: 0 | I63: 0 | J63: 0
A64: Gippsland | B64: Athlone | C64: Ryegrass - Dryland - late annual | D64: Mar | E64: GippslandAthloneRyegrass - Dryland - late annualMar | F64: 15.49899105 | G64: 14.93493626 | H64: 14.37763408 | I64: 13.23107114 | J64: 11.43631743
A65: Gippsland | B65: Athlone | C65: Ryegrass - Dryland - late annual | D65: Apr | E65: GippslandAthloneRyegrass - Dryland - late annualApr | F65: 69.93927429 | G65: 67.28003089 | H65: 64.12286339 | I65: 56.00597989 | J65: 52.44291412
A66: Gippsland | B66: Athlone | C66: Ryegrass - Dryland - late annual | D66: May | E66: =TRIM(A66)&TRIM(B66)&TRIM(C66)&TRIM(D66) -> GippslandAthloneRyegrass - Dryland - late annualMay | F66: 45.36019095 | G66: 44.21700155 | H66: 40.91824295 | I66: 38.50780932 | J66: 33.96549069
A67: Gippsland | B67: Athlone | C67: Ryegrass - Dryland - late annual | D67: Jun | E67: GippslandAthloneRyegrass - Dryland - late annualJun | F67: 34.91462829 | G67: 31.18792562 | H67: 26.29569705 | I67: 23.63678112 | J67: 19.01034612
A68: Gippsland | B68: Athlone | C68: Ryegrass - Dryland - late annual | D68: Jul | E68: GippslandAthloneRyegrass - Dryland - late annualJul | F68: 32.83049279 | G68: 29.93744792 | H68: 28.61022186 | I68: 25.62332197 | J68: 22.62892976
A69: Gippsland | B69: Athlone | C69: Ryegrass - Dryland - late annual | D69: Aug | E69: GippslandAthloneRyegrass - Dryland - late annualAug | F69: 45.22578659 | G69: 42.33335633 | H69: 36.82315205 | I69: 29.96899265 | J69: 23.8265684
A70: Gippsland | B70: Athlone | C70: Ryegrass - Dryland - late annual | D70: Sep | E70: GippslandAthloneRyegrass - Dryland - late annualSep | F70: 54.99677405 | G70: 50.55049872 | H70: 43.9855776 | I70: 38.14111072 | J70: 31.72643884
A71: Gippsland | B71: Athlone | C71: Ryegrass - Dryland - late annual | D71: Oct | E71: GippslandAthloneRyegrass - Dryland - late annualOct | F71: 65.79452129 | G71: 63.28860324 | H71: 59.44745842 | I71: 54.86235249 | J71: 50.34462409
A72: Gippsland | B72: Athlone | C72: Ryegrass - Dryland - late annual | D72: Nov | E72: GippslandAthloneRyegrass - Dryland - late annualNov | F72: 67.40347618 | G72: 65.5761073 | H72: 61.05696532 | I72: 54.66250765 | J72: 34.62968181
A73: Gippsland | B73: Athlone | C73: Ryegrass - Dryland - late annual | D73: Dec | E73: GippslandAthloneRyegrass - Dryland - late annualDec | F73: 5.941120143 | G73: 3.325741983 | H73: 1.535462014 | I73: 0.3662376923 | J73: 0
A74: Gippsland | B74: Athlone | C74: Ryegrass - Dryland - Perennial | D74: Jan | E74: GippslandAthloneRyegrass - Dryland - PerennialJan | F74: 43.49496974 | G74: 31.02030101 | H74: 10.1978349 | I74: 1.736214342 | J74: 0
A75: Gippsland | B75: Athlone | C75: Ryegrass - Dryland - Perennial | D75: Feb | E75: GippslandAthloneRyegrass - Dryland - PerennialFeb | F75: 22.16097361 | G75: 9.535960238 | H75: 2.951905335 | I75: 0 | J75: 0
A76: Gippsland | B76: Athlone | C76: Ryegrass - Dryland - Perennial | D76: Mar | E76: GippslandAthloneRyegrass - Dryland - PerennialMar | F76: 36.32627552 | G76: 17.13682642 | H76: 4.264539173 | I76: 0.2262689739 | J76: 0
A77: Gippsland | B77: Athlone | C77: Ryegrass - Dryland - Perennial | D77: Apr | E77: GippslandAthloneRyegrass - Dryland - PerennialApr | F77: 43.52646851 | G77: 34.96582734 | H77: 15.39180856 | I77: 2.150915738 | J77: 0.08729026477
A78: Gippsland | B78: Athlone | C78: Ryegrass - Dryland - Perennial | D78: May | E78: GippslandAthloneRyegrass - Dryland - PerennialMay | F78: 29.37592477 | G78: 26.41463993 | H78: 19.53757724 | I78: 7.824177682 | J78: 2.412385493
A79: Gippsland | B79: Athlone | C79: Ryegrass - Dryland - Perennial | D79: Jun | E79: GippslandAthloneRyegrass - Dryland - PerennialJun | F79: 24.80255033 | G79: 19.92198391 | H79: 16.90104058 | I79: 13.43831564 | J79: 7.617811429
A80: Gippsland | B80: Athlone | C80: Ryegrass - Dryland - Perennial | D80: Jul | E80: GippslandAthloneRyegrass - Dryland - PerennialJul | F80: 31.81971855 | G80: 28.5784859 | H80: 25.4441793 | I80: 20.71325753 | J80: 15.10512196
A81: Gippsland | B81: Athlone | C81: Ryegrass - Dryland - Perennial | D81: Aug | E81: GippslandAthloneRyegrass - Dryland - PerennialAug | F81: 46.34090371 | G81: 43.69399638 | H81: 39.45106756 | I81: 33.46462144 | J81: 26.80160384
A82: Gippsland | B82: Athlone | C82: Ryegrass - Dryland - Perennial | D82: Sep | E82: GippslandAthloneRyegrass - Dryland - PerennialSep | F82: 56.65389075 | G82: 50.45161432 | H82: 45.09917669 | I82: 40.29198138 | J82: 38.16411937
A83: Gippsland | B83: Athlone | C83: Ryegrass - Dryland - Perennial | D83: Oct | E83: GippslandAthloneRyegrass - Dryland - PerennialOct | F83: 67.22773645 | G83: 64.9297106 | H83: 61.92371331 | I83: 58.64946165 | J83: 55.53621849
A84: Gippsland | B84: Athlone | C84: Ryegrass - Dryland - Perennial | D84: Nov | E84: GippslandAthloneRyegrass - Dryland - PerennialNov | F84: 69.18932041 | G84: 65.0710348 | H84: 59.64707519 | I84: 50.5587503 | J84: 34.03682227
A85: Gippsland | B85: Athlone | C85: Ryegrass - Dryland - Perennial | D85: Dec | E85: GippslandAthloneRyegrass - Dryland - PerennialDec | F85: 64.64447357 | G85: 52.66886437 | H85: 41.30006853 | I85: 15.82249683 | J85: 5.597811227
A86: Gippsland | B86: Athlone | C86: Ryegrass - Irrigated - early annual | D86: Jan | E86: GippslandAthloneRyegrass - Irrigated - early annualJan | F86: 0 | G86: 0 | H86: 0 | I86: 0 | J86: 0
A87: Gippsland | B87: Athlone | C87: Ryegrass - Irrigated - early annual | D87: Feb | E87: GippslandAthloneRyegrass - Irrigated - early annualFeb | F87: 0 | G87: 0 | H87: 0 | I87: 0 | J87: 0
A88: Gippsland | B88: Athlone | C88: Ryegrass - Irrigated - early annual | D88: Mar | E88: GippslandAthloneRyegrass - Irrigated - early annualMar | F88: 6.075594124 | G88: 5.938644932 | H88: 5.562399695 | I88: 5.367291527 | J88: 4.947790761
A89: Gippsland | B89: Athlone | C89: Ryegrass - Irrigated - early annual | D89: Apr | E89: GippslandAthloneRyegrass - Irrigated - early annualApr | F89: 41.47612367 | G89: 38.49972046 | H89: 36.05056028 | I89: 33.76760499 | J89: 27.82228415
A90: Gippsland | B90: Athlone | C90: Ryegrass - Irrigated - early annual | D90: May | E90: GippslandAthloneRyegrass - Irrigated - early annualMay | F90: 57.39241898 | G90: 55.69512529 | H90: 54.40436406 | I90: 51.08597763 | J90: 48.48797064
A91: Gippsland | B91: Athlone | C91: Ryegrass - Irrigated - early annual | D91: Jun | E91: GippslandAthloneRyegrass - Irrigated - early annualJun | F91: 27.8648795 | G91: 24.62711818 | H91: 15.94510848 | I91: 12.69271038 | J91: 9.904037616
A92: Gippsland | B92: Athlone | C92: Ryegrass - Irrigated - early annual | D92: Jul | E92: GippslandAthloneRyegrass - Irrigated - early annualJul | F92: 27.7125506 | G92: 23.6728788 | H92: 20.01401614 | I92: 16.75950056 | J92: 13.21308257
A93: Gippsland | B93: Athlone | C93: Ryegrass - Irrigated - early annual | D93: Aug | E93: GippslandAthloneRyegrass - Irrigated - early annualAug | F93: 45.84463853 | G93: 40.99095381 | H93: 35.05883457 | I93: 29.15952662 | J93: 22.91539429
A94: Gippsland | B94: Athlone | C94: Ryegrass - Irrigated - early annual | D94: Sep | E94: GippslandAthloneRyegrass - Irrigated - early annualSep | F94: 53.64048604 | G94: 48.14083714 | H94: 41.66324774 | I94: 36.24916865 | J94: 33.20986371
A95: Gippsland | B95: Athlone | C95: Ryegrass - Irrigated - early annual | D95: Oct | E95: GippslandAthloneRyegrass - Irrigated - early annualOct | F95: 70.30015461 | G95: 67.04164317 | H95: 63.8863954 | I95: 58.05027273 | J95: 54.10180639
A96: Gippsland | B96: Athlone | C96: Ryegrass - Irrigated - early annual | D96: Nov | E96: GippslandAthloneRyegrass - Irrigated - early annualNov | F96: 19.18459562 | G96: 16.93817605 | H96: 12.12775342 | I96: 5.908019817 | J96: 2.380557357
A97: Gippsland | B97: Athlone | C97: Ryegrass - Irrigated - early annual | D97: Dec | E97: GippslandAthloneRyegrass - Irrigated - early annualDec | F97: 0 | G97: 0 | H97: 0 | I97: 0 | J97: 0
A98: Gippsland | B98: Athlone | C98: Ryegrass - Irrigated - late annual | D98: Jan | E98: GippslandAthloneRyegrass - Irrigated - late annualJan | F98: 0 | G98: 0 | H98: 0 | I98: 0 | J98: 0
A99: Gippsland | B99: Athlone | C99: Ryegrass - Irrigated - late annual | D99: Feb | E99: GippslandAthloneRyegrass - Irrigated - late annualFeb | F99: 0 | G99: 0 | H99: 0 | I99: 0 | J99: 0
A100: Gippsland | B100: Athlone | C100: Ryegrass - Irrigated - late annual | D100: Mar | E100: GippslandAthloneRyegrass - Irrigated - late annualMar | F100: 16.12710289 | G100: 15.55788179 | H100: 14.78251122 | I100: 13.59064274 | J100: 12.20031723
A101: Gippsland | B101: Athlone | C101: Ryegrass - Irrigated - late annual | D101: Apr | E101: GippslandAthloneRyegrass - Irrigated - late annualApr | F101: 72.56179606 | G101: 67.88290202 | H101: 65.41188634 | I101: 61.58051503 | J101: 55.11548122
A102: Gippsland | B102: Athlone | C102: Ryegrass - Irrigated - late annual | D102: May | E102: GippslandAthloneRyegrass - Irrigated - late annualMay | F102: 44.65216256 | G102: 43.03178444 | H102: 40.26101758 | I102: 37.25115602 | J102: 34.27119365
A103: Gippsland | B103: Athlone | C103: Ryegrass - Irrigated - late annual | D103: Jun | E103: GippslandAthloneRyegrass - Irrigated - late annualJun | F103: 35.10131029 | G103: 32.24918896 | H103: 27.61024694 | I103: 24.84815547 | J103: 22.21151985
A104: Gippsland | B104: Athlone | C104: Ryegrass - Irrigated - late annual | D104: Jul | E104: GippslandAthloneRyegrass - Irrigated - late annualJul | F104: 31.18374573 | G104: 29.71891114 | H104: 27.95107955 | I104: 25.28128282 | J104: 22.27648065
A105: Gippsland | B105: Athlone | C105: Ryegrass - Irrigated - late annual | D105: Aug | E105: GippslandAthloneRyegrass - Irrigated - late annualAug | F105: 43.84574538 | G105: 41.14853894 | H105: 35.34511272 | I105: 28.22803308 | J105: 21.99313175
A106: Gippsland | B106: Athlone | C106: Ryegrass - Irrigated - late annual | D106: Sep | E106: GippslandAthloneRyegrass - Irrigated - late annualSep | F106: 55.59957059 | G106: 52.07275615 | H106: 47.11709563 | I106: 38.64886963 | J106: 33.89197105
A107: Gippsland | B107: Athlone | C107: Ryegrass - Irrigated - late annual | D107: Oct | E107: GippslandAthloneRyegrass - Irrigated - late annualOct | F107: 69.09235061 | G107: 64.20118447 | H107: 61.7051866 | I107: 57.8845624 | J107: 51.69295054
A108: Gippsland | B108: Athlone | C108: Ryegrass - Irrigated - late annual | D108: Nov | E108: GippslandAthloneRyegrass - Irrigated - late annualNov | F108: 73.10607578 | G108: 70.23446465 | H108: 67.13331556 | I108: 63.85053392 | J108: 61.36357736
A109: Gippsland | B109: Athlone | C109: Ryegrass - Irrigated - late annual | D109: Dec | E109: GippslandAthloneRyegrass - Irrigated - late annualDec | F109: 7.377908737 | G109: 5.607748489 | H109: 2.681878813 | I109: 0.7499536545 | J109: 0
A110: Gippsland | B110: Athlone | C110: Ryegrass - Irrigated - Perennial | D110: Jan | E110: GippslandAthloneRyegrass - Irrigated - PerennialJan | F110: 73.0312487 | G110: 65.96021364 | H110: 52.85720136 | I110: 42.57645186 | J110: 28.70513806
A111: Gippsland | B111: Athlone | C111: Ryegrass - Irrigated - Perennial | D111: Feb | E111: GippslandAthloneRyegrass - Irrigated - PerennialFeb | F111: 58.75509088 | G111: 54.39739242 | H111: 43.62100281 | I111: 27.88252079 | J111: 23.44918725
A112: Gippsland | B112: Athlone | C112: Ryegrass - Irrigated - Perennial | D112: Mar | E112: GippslandAthloneRyegrass - Irrigated - PerennialMar | F112: 50.49525358 | G112: 47.77144219 | H112: 45.37937884 | I112: 39.22148198 | J112: 23.14668415
A113: Gippsland | B113: Athlone | C113: Ryegrass - Irrigated - Perennial | D113: Apr | E113: GippslandAthloneRyegrass - Irrigated - PerennialApr | F113: 43.06532358 | G113: 41.57978526 | H113: 33.93404029 | I113: 30.06401719 | J113: 26.65976053
A114: Gippsland | B114: Athlone | C114: Ryegrass - Irrigated - Perennial | D114: May | E114: GippslandAthloneRyegrass - Irrigated - PerennialMay | F114: 26.71281776 | G114: 24.46523116 | H114: 19.56015345 | I114: 17.96124291 | J114: 16.28603564
A115: Gippsland | B115: Athlone | C115: Ryegrass - Irrigated - Perennial | D115: Jun | E115: GippslandAthloneRyegrass - Irrigated - PerennialJun | F115: 24.42942476 | G115: 19.88025399 | H115: 17.49834213 | I115: 13.30712257 | J115: 10.75152253
A116: Gippsland | B116: Athlone | C116: Ryegrass - Irrigated - Perennial | D116: Jul | E116: GippslandAthloneRyegrass - Irrigated - PerennialJul | F116: 30.5338795 | G116: 29.04132565 | H116: 25.53295606 | I116: 22.40826427 | J116: 18.09771564
A117: Gippsland | B117: Athlone | C117: Ryegrass - Irrigated - Perennial | D117: Aug | E117: GippslandAthloneRyegrass - Irrigated - PerennialAug | F117: 42.38476803 | G117: 40.23209165 | H117: 36.98852407 | I117: 33.49012793 | J117: 28.03724038
A118: Gippsland | B118: Athlone | C118: Ryegrass - Irrigated - Perennial | D118: Sep | E118: GippslandAthloneRyegrass - Irrigated - PerennialSep | F118: 56.35995524 | G118: 53.35658412 | H118: 49.0615142 | I118: 43.72071584 | J118: 32.62298784
A119: Gippsland | B119: Athlone | C119: Ryegrass - Irrigated - Perennial | D119: Oct | E119: GippslandAthloneRyegrass - Irrigated - PerennialOct | F119: 67.93027463 | G119: 66.18694925 | H119: 62.81908411 | I119: 58.86565928 | J119: 53.13764463
A120: Gippsland | B120: Athlone | C120: Ryegrass - Irrigated - Perennial | D120: Nov | E120: GippslandAthloneRyegrass - Irrigated - PerennialNov | F120: 74.66678425 | G120: 72.93640515 | H120: 70.78807675 | I120: 67.82135621 | J120: 61.07626135
A121: Gippsland | B121: Athlone | C121: Ryegrass - Irrigated - Perennial | D121: Dec | E121: GippslandAthloneRyegrass - Irrigated - PerennialDec | F121: 79.68420025 | G121: 76.69658905 | H121: 72.59791605 | I121: 65.31142758 | J121: 56.14822593
A122: Gippsland | B122: Athlone | C122: Tall Fescue - Dryland | D122: Jan | E122: GippslandAthloneTall Fescue - DrylandJan | F122: 55.56709361 | G122: 52.31906491 | H122: 32.33672336 | I122: 16.68416047 | J122: 5.817041423
A123: Gippsland | B123: Athlone | C123: Tall Fescue - Dryland | D123: Feb | E123: GippslandAthloneTall Fescue - DrylandFeb | F123: 35.76469169 | G123: 28.84749298 | H123: 8.855349737 | I123: 1.951806751 | J123: 0
A124: Gippsland | B124: Athlone | C124: Tall Fescue - Dryland | D124: Mar | E124: GippslandAthloneTall Fescue - DrylandMar | F124: 33.6366479 | G124: 22.76688063 | H124: 2.35171398 | I124: 0.2754513871 | J124: 0
A125: Gippsland | B125: Athlone | C125: Tall Fescue - Dryland | D125: Apr | E125: GippslandAthloneTall Fescue - DrylandApr | F125: 31.60822539 | G125: 25.26118935 | H125: 12.92633964 | I125: 1.183099152 | J125: 0.1118934242
A126: Gippsland | B126: Athlone | C126: Tall Fescue - Dryland | D126: May | E126: GippslandAthloneTall Fescue - DrylandMay | F126: 23.46598353 | G126: 18.045339 | H126: 13.11893017 | I126: 9.205833291 | J126: 5.453996464
A127: Gippsland | B127: Athlone | C127: Tall Fescue - Dryland | D127: Jun | E127: GippslandAthloneTall Fescue - DrylandJun | F127: 18.80205582 | G127: 17.02306934 | H127: 13.61486938 | I127: 10.67157056 | J127: 8.315214339
A128: Gippsland | B128: Athlone | C128: Tall Fescue - Dryland | D128: Jul | E128: GippslandAthloneTall Fescue - DrylandJul | F128: 26.36376009 | G128: 24.78735829 | H128: 22.24546047 | I128: 19.78429707 | J128: 17.82494413
A129: Gippsland | B129: Athlone | C129: Tall Fescue - Dryland | D129: Aug | E129: GippslandAthloneTall Fescue - DrylandAug | F129: 41.83296101 | G129: 38.61729477 | H129: 33.75131832 | I129: 31.72204061 | J129: 29.35240334
A130: Gippsland | B130: Athlone | C130: Tall Fescue - Dryland | D130: Sep | E130: =TRIM(A130)&TRIM(B130)&TRIM(C130)&TRIM(D130) -> GippslandAthloneTall Fescue - DrylandSep | F130: 51.35872777 | G130: 49.21337929 | H130: 45.19417375 | I130: 42.23218913 | J130: 39.99523305
A131: Gippsland | B131: Athlone | C131: Tall Fescue - Dryland | D131: Oct | E131: GippslandAthloneTall Fescue - DrylandOct | F131: 65.31390573 | G131: 63.294371 | H131: 60.15257743 | I131: 56.24698868 | J131: 52.73893809
A132: Gippsland | B132: Athlone | C132: Tall Fescue - Dryland | D132: Nov | E132: GippslandAthloneTall Fescue - DrylandNov | F132: 69.9572934 | G132: 68.4803078 | H132: 65.89474958 | I132: 61.78193312 | J132: 60.12911839
A133: Gippsland | B133: Athlone | C133: Tall Fescue - Dryland | D133: Dec | E133: GippslandAthloneTall Fescue - DrylandDec | F133: 65.96724788 | G133: 62.29247973 | H133: 57.08959862 | I133: 54.58520708 | J133: 47.20239776
A134: Gippsland | B134: Athlone | C134: Tall Fescue - Irrigated | D134: May | E134: GippslandAthloneTall Fescue - IrrigatedMay | F134: 22.27626726 | G134: 19.80735014 | H134: 16.48450113 | I134: 13.24146386 | J134: 10.75547475
A135: Gippsland | B135: Athlone | C135: Tall Fescue - Irrigated | D135: April | E135: GippslandAthloneTall Fescue - IrrigatedApril | F135: 35.28943226 | G135: 34.04907398 | H135: 29.8016517 | I135: 27.13174148 | J135: 21.08624225
A136: Gippsland | B136: Athlone | C136: Tall Fescue - Irrigated | D136: August | E136: GippslandAthloneTall Fescue - IrrigatedAugust | F136: 42.54701944 | G136: 37.98442881 | H136: 35.7325389 | I136: 32.83963728 | J136: 29.88618541
A137: Gippsland | B137: Athlone | C137: Tall Fescue - Irrigated | D137: December | E137: GippslandAthloneTall Fescue - IrrigatedDecember | F137: 76.13066416 | G137: 74.90203574 | H137: 72.55578982 | I137: 69.52162401 | J137: 64.70441354
A138: Gippsland | B138: Athlone | C138: Tall Fescue - Irrigated | D138: February | E138: GippslandAthloneTall Fescue - IrrigatedFebruary | F138: 62.55778997 | G138: 58.48074271 | H138: 53.4957914 | I138: 44.97804347 | J138: 38.38681598
A139: Gippsland | B139: Athlone | C139: Tall Fescue - Irrigated | D139: January | E139: GippslandAthloneTall Fescue - IrrigatedJanuary | F139: 72.6196054 | G139: 68.16515969 | H139: 61.30285054 | I139: 55.53960356 | J139: 48.65745087
A140: Gippsland | B140: Athlone | C140: Tall Fescue - Irrigated | D140: July | E140: GippslandAthloneTall Fescue - IrrigatedJuly | F140: 27.0120231 | G140: 22.34939356 | H140: 21.3728301 | I140: 19.70919187 | J140: 17.21541956
A141: Gippsland | B141: Athlone | C141: Tall Fescue - Irrigated | D141: June | E141: GippslandAthloneTall Fescue - IrrigatedJune | F141: 18.44884157 | G141: 16.14470858 | H141: 12.64126515 | I141: 10.101206 | J141: 7.072588884
A142: Gippsland | B142: Athlone | C142: Tall Fescue - Irrigated | D142: March | E142: GippslandAthloneTall Fescue - IrrigatedMarch | F142: 47.89154235 | G142: 46.01531503 | H142: 42.24667106 | I142: 39.09203409 | J142: 29.83911978
A143: Gippsland | B143: Athlone | C143: Tall Fescue - Irrigated | D143: November | E143: GippslandAthloneTall Fescue - IrrigatedNovember | F143: 74.33631585 | G143: 70.4046237 | H143: 67.66997757 | I143: 66.15220575 | J143: 64.91410712
A144: Gippsland | B144: Athlone | C144: Tall Fescue - Irrigated | D144: October | E144: GippslandAthloneTall Fescue - IrrigatedOctober | F144: 65.75526875 | G144: 63.04775155 | H144: 61.13214437 | I144: 57.1703316 | J144: 54.95323406
A145: Gippsland | B145: Athlone | C145: Tall Fescue - Irrigated | D145: September | E145: GippslandAthloneTall Fescue - IrrigatedSeptember | F145: 53.03938849 | G145: 50.14877292 | H145: 46.40897519 | I145: 42.42283915 | J145: 38.53622968
A146: Gippsland | B146: Ellinbank | C146: Chicory | D146: Jan | E146: GippslandEllinbankChicoryJan | F146: 82.21073545 | G146: 77.12243405 | H146: 49.55500663 | I146: 24.61953495 | J146: 13.10632246
A147: Gippsland | B147: Ellinbank | C147: Chicory | D147: Feb | E147: GippslandEllinbankChicoryFeb | F147: 67.45785752 | G147: 54.51001392 | H147: 25.28489835 | I147: 8.565542505 | J147: 2.324245232
A148: Gippsland | B148: Ellinbank | C148: Chicory | D148: Mar | E148: GippslandEllinbankChicoryMar | F148: 93.74535082 | G148: 63.13268053 | H148: 44.58992152 | I148: 20.25728087 | J148: 3.789869251
A149: Gippsland | B149: Ellinbank | C149: Chicory | D149: Apr | E149: GippslandEllinbankChicoryApr | F149: 76.5258011 | G149: 58.96575263 | H149: 44.26447903 | I149: 25.44624462 | J149: 8.943744075
A150: Gippsland | B150: Ellinbank | C150: Chicory | D150: May | E150: GippslandEllinbankChicoryMay | F150: 40.83915858 | G150: 32.06765756 | H150: 20.4477352 | I150: 11.81175743 | J150: 6.665573557
A151: Gippsland | B151: Ellinbank | C151: Chicory | D151: Jun | E151: GippslandEllinbankChicoryJun | F151: 13.78930495 | G151: 6.481162429 | H151: 3.732778215 | I151: 1.06318741 | J151: 0.4111028608
A152: Gippsland | B152: Ellinbank | C152: Chicory | D152: Jul | E152: GippslandEllinbankChicoryJul | F152: 6.126723111 | G152: 2.12265826 | H152: 0.3588554936 | I152: 0 | J152: 0
A153: Gippsland | B153: Ellinbank | C153: Chicory | D153: Aug | E153: GippslandEllinbankChicoryAug | F153: 6.673993735 | G153: 3.814076635 | H153: 1.642797532 | I153: 0.584324606 | J153: 0
A154: Gippsland | B154: Ellinbank | C154: Chicory | D154: Sep | E154: GippslandEllinbankChicorySep | F154: 20.25159012 | G154: 14.15503753 | H154: 8.9990194 | I154: 6.192506234 | J154: 3.150406036
A155: Gippsland | B155: Ellinbank | C155: Chicory | D155: Oct | E155: GippslandEllinbankChicoryOct | F155: 59.40904633 | G155: 43.77540503 | H155: 36.21725998 | I155: 18.88672681 | J155: 8.922076444
A156: Gippsland | B156: Ellinbank | C156: Chicory | D156: Nov | E156: GippslandEllinbankChicoryNov | F156: 95.41970157 | G156: 86.89286025 | H156: 68.82695156 | I156: 44.48119957 | J156: 33.72325843
A157: Gippsland | B157: Ellinbank | C157: Chicory | D157: Dec | E157: GippslandEllinbankChicoryDec | F157: 118.5836207 | G157: 99.24072146 | H157: 75.51862213 | I157: 46.81968144 | J157: 35.13555147
A158: Gippsland | B158: Ellinbank | C158: Lucerne - grazed, dryland | D158: Jan | E158: GippslandEllinbankLucerne - grazed, drylandJan | F158: 59.5275 | G158: 53.0516129 | H158: 32.628125 | I158: 21.90625 | J158: 9.551875
A159: Gippsland | B159: Ellinbank | C159: Lucerne - grazed, dryland | D159: Feb | E159: GippslandEllinbankLucerne - grazed, drylandFeb | F159: 46.01517241 | G159: 32.55172414 | H159: 26.21034483 | I159: 11.99655172 | J159: 3.088374384
A160: Gippsland | B160: Ellinbank | C160: Lucerne - grazed, dryland | D160: Mar | E160: GippslandEllinbankLucerne - grazed, drylandMar | F160: 46.56645161 | G160: 35.01612903 | H160: 19.853125 | I160: 9.70625 | J160: 5.121209677
A161: Gippsland | B161: Ellinbank | C161: Lucerne - grazed, dryland | D161: Apr | E161: GippslandEllinbankLucerne - grazed, drylandApr | F161: 43.78980645 | G161: 31.61 | H161: 24.20322581 | I161: 9.187096774 | J161: 5.873505376
A162: Gippsland | B162: Ellinbank | C162: Lucerne - grazed, dryland | D162: May | E162: GippslandEllinbankLucerne - grazed, drylandMay | F162: 38.46580645 | G162: 31.93870968 | H162: 21.146875 | I162: 11.103125 | J162: 8.905
A163: Gippsland | B163: Ellinbank | C163: Lucerne - grazed, dryland | D163: Jun | E163: GippslandEllinbankLucerne - grazed, drylandJun | F163: 25.32645161 | G163: 21.45 | H163: 15.01333333 | I163: 6.706451613 | J163: 3.058064516
A164: Gippsland | B164: Ellinbank | C164: Lucerne - grazed, dryland | D164: Jul | E164: GippslandEllinbankLucerne - grazed, drylandJul | F164: 36.61 | G164: 33.99375 | H164: 28.18064516 | I164: 16.57741935 | J164: 5.655645161
A165: Gippsland | B165: Ellinbank | C165: Lucerne - grazed, dryland | D165: Aug | E165: GippslandEllinbankLucerne - grazed, drylandAug | F165: 59.70387097 | G165: 49.246875 | H165: 33.87419355 | I165: 20.140625 | J165: 14.658125
A166: Gippsland | B166: Ellinbank | C166: Lucerne - grazed, dryland | D166: Sep | E166: GippslandEllinbankLucerne - grazed, drylandSep | F166: 89.25533333 | G166: 86.24666667 | H166: 61.00333333 | I166: 45.13548387 | J166: 26.42552688
A167: Gippsland | B167: Ellinbank | C167: Lucerne - grazed, dryland | D167: Oct | E167: GippslandEllinbankLucerne - grazed, drylandOct | F167: 110.3741935 | G167: 89.98387097 | H167: 67.615625 | I167: 52.63870968 | J167: 47.73875
A168: Gippsland | B168: Ellinbank | C168: Lucerne - grazed, dryland | D168: Nov | E168: GippslandEllinbankLucerne - grazed, drylandNov | F168: 112.166 | G168: 96.99354839 | H168: 68.32580645 | I168: 55.87741935 | J168: 52.1716129
A169: Gippsland | B169: Ellinbank | C169: Lucerne - grazed, dryland | D169: Dec | E169: GippslandEllinbankLucerne - grazed, drylandDec | F169: 88.073125 | G169: 78.29032258 | H169: 53.540625 | I169: 42.3375 | J169: 32.621875
A170: Gippsland | B170: Ellinbank | C170: Lucerne - grazed, irrigated | D170: Jan | E170: GippslandEllinbankLucerne - grazed, irrigatedJan | F170: 102.856875 | G170: 96.36451613 | H170: 89.603125 | I170: 75.78125 | J170: 69.39
A171: Gippsland | B171: Ellinbank | C171: Lucerne - grazed, irrigated | D171: Feb | E171: GippslandEllinbankLucerne - grazed, irrigatedFeb | F171: 95.84648276 | G171: 86.04137931 | H171: 72.25517241 | I171: 62.25517241 | J171: 50.90068966
A172: Gippsland | B172: Ellinbank | C172: Lucerne - grazed, irrigated | D172: Mar | E172: GippslandEllinbankLucerne - grazed, irrigatedMar | F172: 72.86375 | G172: 65.209375 | H172: 53.10625 | I172: 40.921875 | J172: 34.11625
A173: Gippsland | B173: Ellinbank | C173: Lucerne - grazed, irrigated | D173: Apr | E173: GippslandEllinbankLucerne - grazed, irrigatedApr | F173: 52.18387097 | G173: 44.36774194 | H173: 32.22580645 | I173: 18.39333333 | J173: 14.85290323
A174: Gippsland | B174: Ellinbank | C174: Lucerne - grazed, irrigated | D174: May | E174: GippslandEllinbankLucerne - grazed, irrigatedMay | F174: 40.37991935 | G174: 35.63548387 | H174: 24.178125 | I174: 13.10625 | J174: 10.08677419
A175: Gippsland | B175: Ellinbank | C175: Lucerne - grazed, irrigated | D175: Jun | E175: GippslandEllinbankLucerne - grazed, irrigatedJun | F175: 25.30258065 | G175: 21.47666667 | H175: 15.1 | I175: 6.706451613 | J175: 3.199354839
A176: Gippsland | B176: Ellinbank | C176: Lucerne - grazed, irrigated | D176: Jul | E176: GippslandEllinbankLucerne - grazed, irrigatedJul | F176: 36.78362903 | G176: 34.003125 | H176: 28.13548387 | I176: 16.6 | J176: 5.655
A177: Gippsland | B177: Ellinbank | C177: Lucerne - grazed, irrigated | D177: Aug | E177: GippslandEllinbankLucerne - grazed, irrigatedAug | F177: 59.88451613 | G177: 49.253125 | H177: 33.9483871 | I177: 20.140625 | J177: 14.5375
A178: Gippsland | B178: Ellinbank | C178: Lucerne - grazed, irrigated | D178: Sep | E178: GippslandEllinbankLucerne - grazed, irrigatedSep | F178: 89.85 | G178: 86.4 | H178: 61.00333333 | I178: 45.19354839 | J178: 26.43068817
A179: Gippsland | B179: Ellinbank | C179: Lucerne - grazed, irrigated | D179: Oct | E179: GippslandEllinbankLucerne - grazed, irrigatedOct | F179: 119.3554839 | G179: 91.8483871 | H179: 75.0875 | I179: 55.2516129 | J179: 48.0525
A180: Gippsland | B180: Ellinbank | C180: Lucerne - grazed, irrigated | D180: Nov | E180: GippslandEllinbankLucerne - grazed, irrigatedNov | F180: 135.1768172 | G180: 113.31 | H180: 102.8645161 | I180: 71.67741935 | J180: 62.52322581
A181: Gippsland | B181: Ellinbank | C181: Lucerne - grazed, irrigated | D181: Dec | E181: GippslandEllinbankLucerne - grazed, irrigatedDec | F181: 114.0949194 | G181: 106.6 | H181: 92.05625 | I181: 75.571875 | J181: 68.641875
A182: Gippsland | B182: Ellinbank | C182: Plantain | D182: Jan | E182: GippslandEllinbankPlantainJan | F182: 60.88583903 | G182: 44.019538 | H182: 13.20053468 | I182: 1.880269408 | J182: 0.02298036852
A183: Gippsland | B183: Ellinbank | C183: Plantain | D183: Feb | E183: GippslandEllinbankPlantainFeb | F183: 31.80272049 | G183: 23.66191348 | H183: 1.983838 | I183: 0.1636977472 | J183: 0
A184: Gippsland | B184: Ellinbank | C184: Plantain | D184: Mar | E184: GippslandEllinbankPlantainMar | F184: 40.82837016 | G184: 20.56505803 | H184: 7.416387308 | I184: 0.798489088 | J184: 0
A185: Gippsland | B185: Ellinbank | C185: Plantain | D185: Apr | E185: GippslandEllinbankPlantainApr | F185: 58.80983177 | G185: 53.24394994 | H185: 41.79209708 | I185: 11.97311281 | J185: 2.143254208
A186: Gippsland | B186: Ellinbank | C186: Plantain | D186: May | E186: GippslandEllinbankPlantainMay | F186: 52.70218796 | G186: 50.31497319 | H186: 47.48215885 | I186: 41.87037233 | J186: 25.80871115
A187: Gippsland | B187: Ellinbank | C187: Plantain | D187: Jun | E187: GippslandEllinbankPlantainJun | F187: 52.65032129 | G187: 49.50985295 | H187: 47.64539693 | I187: 43.46422342 | J187: 39.52017856
A188: Gippsland | B188: Ellinbank | C188: Plantain | D188: Jul | E188: GippslandEllinbankPlantainJul | F188: 61.31081627 | G188: 59.13078102 | H188: 57.15833196 | I188: 53.64109288 | J188: 50.45186632
A189: Gippsland | B189: Ellinbank | C189: Plantain | D189: Aug | E189: GippslandEllinbankPlantainAug | F189: 80.14199064 | G189: 78.33781562 | H189: 72.96239213 | I189: 70.86066129 | J189: 69.50876361
A190: Gippsland | B190: Ellinbank | C190: Plantain | D190: Sep | E190: GippslandEllinbankPlantainSep | F190: 92.05778186 | G190: 88.89042829 | H190: 85.55795835 | I190: 81.67668794 | J190: 80.09288689
A191: Gippsland | B191: Ellinbank | C191: Plantain | D191: Oct | E191: GippslandEllinbankPlantainOct | F191: 102.7777049 | G191: 99.90708468 | H191: 96.35702219 | I191: 91.76923678 | J191: 88.35799044
A192: Gippsland | B192: Ellinbank | C192: Plantain | D192: Nov | E192: GippslandEllinbankPlantainNov | F192: 98.80855042 | G192: 94.42881222 | H192: 81.95359891 | I192: 68.20255768 | J192: 42.92640321
A193: Gippsland | B193: Ellinbank | C193: Plantain | D193: Dec | E193: GippslandEllinbankPlantainDec | F193: 86.50387522 | G193: 76.17470557 | H193: 46.34178342 | I193: 15.98832375 | J193: 2.741197885
A194: Gippsland | B194: Ellinbank | C194: Ryegrass - Dryland - early annual | D194: Jan | E194: =TRIM(A194)&TRIM(B194)&TRIM(C194)&TRIM(D194) -> GippslandEllinbankRyegrass - Dryland - early annualJan | F194: 0 | G194: 0 | H194: 0 | I194: 0 | J194: 0
A195: Gippsland | B195: Ellinbank | C195: Ryegrass - Dryland - early annual | D195: Feb | E195: GippslandEllinbankRyegrass - Dryland - early annualFeb | F195: 0 | G195: 0 | H195: 0 | I195: 0 | J195: 0
A196: Gippsland | B196: Ellinbank | C196: Ryegrass - Dryland - early annual | D196: Mar | E196: GippslandEllinbankRyegrass - Dryland - early annualMar | F196: 6.013796954 | G196: 5.651478606 | H196: 5.343421321 | I196: 5.208555345 | J196: 4.850623094
A197: Gippsland | B197: Ellinbank | C197: Ryegrass - Dryland - early annual | D197: Apr | E197: GippslandEllinbankRyegrass - Dryland - early annualApr | F197: 38.42298339 | G197: 36.74594164 | H197: 34.56980378 | I197: 30.49325616 | J197: 25.22639425
A198: Gippsland | B198: Ellinbank | C198: Ryegrass - Dryland - early annual | D198: May | E198: GippslandEllinbankRyegrass - Dryland - early annualMay | F198: 56.73594833 | G198: 54.02977296 | H198: 51.44171346 | I198: 46.62064271 | J198: 42.78211024
A199: Gippsland | B199: Ellinbank | C199: Ryegrass - Dryland - early annual | D199: Jun | E199: GippslandEllinbankRyegrass - Dryland - early annualJun | F199: 27.05631019 | G199: 23.06213953 | H199: 16.79800889 | I199: 12.17462318 | J199: 8.424131271
A200: Gippsland | B200: Ellinbank | C200: Ryegrass - Dryland - early annual | D200: Jul | E200: GippslandEllinbankRyegrass - Dryland - early annualJul | F200: 26.04405616 | G200: 19.80275345 | H200: 16.35389362 | I200: 10.62131713 | J200: 8.44809137
... 7769 more rows

Sheet Locations by regionstate (hidden)
B2: Gippsland | N2: South West Vic | V2: Northern Vic | AC2: Tasmania | AJ2: South Australia | AO2: WA | AS2: New South Wales | BD2: Queensland
B3: Athlone | C3: Ellinbank | D3: Fish Creek | E3: Leongatha | F3: Maffra | G3: Morwell | H3: Neerim | I3: Orbost | J3: Rosedale | K3: Traralgon | L3: Wonthaggi | M3: Yarram | N3: Cobden | O3: Colac | P3: Heywood | Q3: Koroit | R3: Nullawarre | S3: Simpson | T3: Terang | U3: Timboon | V3: Cobram | W3: Cohuna | X3: Kyabram | Y3: Lockington | Z3: Shepparton | AA3: Swan Hill | AB3: Tallangatta | AC3: Burnie | AD3: Cressy | AE3: Deloraine | AF3: King Island | AG3: Ouse | AH3: Scottsdale | AI3: Smithton | AJ3: Meningie | AK3: Mt. Compass | AL3: Mt. Gambier | AM3: Murray Bridge | AN3: Nuriootpa | AO3: Capel | AP3: Denmark | AQ3: Harvey | AR3: Margaret River | AS3: Bega | AT3: Bellingen | AU3: Camden | AV3: Casino | AW3: Deniliquin | AX3: Denman | AY3: Nowra | AZ3: Tamworth | BA3: Taree | BB3: Tocal | BC3: Wagga | BD3: Beaudesert | BE3: Gatton | BF3: Gympie | BG3: Malanda | BH3: Nanango | BI3: Oakey | BJ3: Rockhampton | BK3: Warwick
A4: Ryegrass - Dryland - Perennial | B4: ü | C4: ü | D4: ü | E4: ü | F4: ü | G4: ü | H4: ü | I4: ü | J4: ü | K4: ü | L4: ü | M4: ü | N4: ü | O4: ü | P4: ü | Q4: ü | R4: ü | S4: ü | T4: ü | U4: ü | V4: ü | W4: ü | X4: ü | Y4: ü | Z4: ü | AA4: ü | AB4: ü | AC4: ü | AD4: ü | AE4: ü | AF4: ü | AG4: ü | AH4: ü | AI4: ü | AJ4: ü | AK4: ü | AL4: ü | AM4: ü | AN4: ü | AS4: ü | AU4: ü | AY4: ü
A5: Ryegrass - Irrigated - Perennial | B5: ü | C5: ü | D5: ü | E5: ü | F5: ü | G5: ü | H5: ü | I5: ü | J5: ü | K5: ü | L5: ü | M5: ü | N5: ü | O5: ü | P5: ü | Q5: ü | R5: ü | S5: ü | T5: ü | U5: ü | V5: ü | W5: ü | X5: ü | Y5: ü | Z5: ü | AA5: ü | AB5: ü | AC5: ü | AD5: ü | AE5: ü | AF5: ü | AG5: ü | AH5: ü | AI5: ü | AJ5: ü | AK5: ü | AL5: ü | AM5: ü | AN5: ü | AO5: ü | AP5: ü | AQ5: ü | AR5: ü | AS5: ü | AT5: ü | AU5: ü | AV5: ü | AW5: ü | AX5: ü | AY5: ü | AZ5: ü | BA5: ü | BB5: ü | BC5: ü
A6: Ryegrass - Dryland - early annual | B6: ü | C6: ü | D6: ü | E6: ü | F6: ü | G6: ü | H6: ü | I6: ü | J6: ü | K6: ü | L6: ü | M6: ü | N6: ü | O6: ü | P6: ü | Q6: ü | R6: ü | S6: ü | T6: ü | U6: ü | V6: ü | W6: ü | X6: ü | Y6: ü | Z6: ü | AA6: ü | AB6: ü | AC6: ü | AD6: ü | AE6: ü | AF6: ü | AG6: ü | AH6: ü | AI6: ü | AJ6: ü | AK6: ü | AL6: ü | AM6: ü | AN6: ü | AO6: ü | AP6: ü | AQ6: ü | AR6: ü | AS6: ü | AT6: ü | AU6: ü | AV6: ü | AW6: ü | AX6: ü | AY6: ü | AZ6: ü | BA6: ü | BB6: ü | BC6: ü | BD6: ü | BE6: ü | BF6: ü | BG6: ü | BH6: ü | BI6: ü | BJ6: ü | BK6: ü
A7: Ryegrass - Irrigated - early annual | B7: ü | C7: ü | D7: ü | E7: ü | F7: ü | G7: ü | H7: ü | I7: ü | J7: ü | K7: ü | L7: ü | M7: ü | N7: ü | O7: ü | P7: ü | Q7: ü | R7: ü | S7: ü | T7: ü | U7: ü | V7: ü | W7: ü | X7: ü | Y7: ü | Z7: ü | AA7: ü | AB7: ü | AC7: ü | AD7: ü | AE7: ü | AF7: ü | AG7: ü | AH7: ü | AI7: ü | AJ7: ü | AK7: ü | AL7: ü | AM7: ü | AN7: ü | AO7: ü | AP7: ü | AQ7: ü | AR7: ü | AS7: ü | AT7: ü | AU7: ü | AV7: ü | AW7: ü | AX7: ü | AY7: ü | AZ7: ü | BA7: ü | BB7: ü | BC7: ü | BD7: ü | BE7: ü | BF7: ü | BG7: ü | BH7: ü | BI7: ü | BJ7: ü | BK7: ü
A8: Ryegrass - Dryland - late annual | B8: ü | C8: ü | D8: ü | E8: ü | F8: ü | G8: ü | H8: ü | I8: ü | J8: ü | K8: ü | L8: ü | M8: ü | N8: ü | O8: ü | P8: ü | Q8: ü | R8: ü | S8: ü | T8: ü | U8: ü | V8: ü | W8: ü | X8: ü | Y8: ü | Z8: ü | AA8: ü | AB8: ü | AC8: ü | AD8: ü | AE8: ü | AF8: ü | AG8: ü | AH8: ü | AI8: ü | AJ8: ü | AK8: ü | AL8: ü | AM8: ü | AN8: ü | AO8: ü | AP8: ü | AQ8: ü | AR8: ü | AS8: ü | AT8: ü | AU8: ü | AV8: ü | AW8: ü | AX8: ü | AY8: ü | AZ8: ü | BA8: ü | BB8: ü | BC8: ü
A9: Ryegrass - Irrigated - late annual | B9: ü | C9: ü | D9: ü | E9: ü | F9: ü | G9: ü | H9: ü | I9: ü | J9: ü | K9: ü | L9: ü | M9: ü | N9: ü | O9: ü | P9: ü | Q9: ü | R9: ü | S9: ü | T9: ü | U9: ü | V9: ü | W9: ü | X9: ü | Y9: ü | Z9: ü | AA9: ü | AB9: ü | AC9: ü | AD9: ü | AE9: ü | AF9: ü | AG9: ü | AH9: ü | AI9: ü | AJ9: ü | AK9: ü | AL9: ü | AM9: ü | AN9: ü | AO9: ü | AP9: ü | AQ9: ü | AR9: ü | AS9: ü | AT9: ü | AU9: ü | AV9: ü | AW9: ü | AX9: ü | AY9: ü | AZ9: ü | BA9: ü | BB9: ü | BC9: ü | BD9: ü | BE9: ü | BF9: ü | BG9: ü | BH9: ü | BI9: ü | BJ9: ü | BK9: ü
A10: Plaintain | B10: ü | C10: ü | D10: ü | E10: ü | F10: ü | G10: ü | H10: ü | I10: ü | J10: ü | K10: ü | L10: ü | M10: ü | N10: ü | O10: ü | P10: ü | Q10: ü | R10: ü | S10: ü | T10: ü | U10: ü | Y10: ü | AB10: ü | AC10: ü | AD10: ü | AE10: ü | AF10: ü | AG10: ü | AH10: ü | AI10: ü | AK10: ü
A11: Chicory | B11: ü | C11: ü | D11: ü | E11: ü | F11: ü | G11: ü | H11: ü | I11: ü | J11: ü | K11: ü | L11: ü | M11: ü | N11: ü | O11: ü | P11: ü | Q11: ü | R11: ü | S11: ü | T11: ü | U11: ü | V11: ü | AB11: ü | AC11: ü | AD11: ü | AE11: ü | AF11: ü | AG11: ü | AH11: ü | AI11: ü | AK11: ü | AL11: ü | AN11: ü | AS11: ü | AT11: ü | AU11: ü | AV11: ü | AX11: ü | AY11: ü | AZ11: ü | BA11: ü | BB11: ü
A12: Tall Fescue - Dryland | B12: ü | C12: ü | D12: ü | E12: ü | F12: ü | G12: ü | H12: ü | I12: ü | J12: ü | K12: ü | L12: ü | N12: ü | O12: ü | P12: ü | Q12: ü | R12: ü | S12: ü | T12: ü | U12: ü | Y12: ü | AB12: ü | AC12: ü | AD12: ü | AE12: ü | AF12: ü | AG12: ü | AH12: ü | AI12: ü | AX12: ü | AZ12: ü | BA12: ü | BB12: ü
A13: Tall Fescue - Irrigated | B13: ü | C13: ü | D13: ü | E13: ü | F13: ü | G13: ü | H13: ü | I13: ü | J13: ü | K13: ü | L13: ü | M13: ü | N13: ü | O13: ü | P13: ü | Q13: ü | R13: ü | S13: ü | T13: ü | U13: ü | V13: ü | W13: ü | X13: ü | Y13: ü | Z13: ü | AA13: ü | AB13: ü | AC13: ü | AD13: ü | AE13: ü | AF13: ü | AG13: ü | AH13: ü | AI13: ü | AJ13: ü | AK13: ü | AL13: ü | AM13: ü | AS13: ü | AT13: ü | AU13: ü | AV13: ü | AW13: ü | AX13: ü | AY13: ü | AZ13: ü | BA13: ü | BB13: ü | BC13: ü | BD13: ü | BF13: ü | BK13: ü
A14: Clover - Red, vegetative | AC14: ü | AD14: ü | AE14: ü | AF14: ü | AG14: ü | AH14: ü | AI14: ü
A15: Kikuyu - early vegetative | AO15: ü | AP15: ü | AQ15: ü | AR15: ü | AS15: ü | AT15: ü | AU15: ü | AV15: ü | AW15: ü | AX15: ü | AY15: ü | AZ15: ü | BA15: ü | BB15: ü | BC15: ü | BD15: ü | BE15: ü | BF15: ü | BG15: ü | BH15: ü | BI15: ü | BJ15: ü | BK15: ü
A16: Kikuyu - late vegetative | AO16: ü | AP16: ü | AQ16: ü | AR16: ü | AS16: ü | AT16: ü | AU16: ü | AV16: ü | AW16: ü | AX16: ü | AY16: ü | AZ16: ü | BA16: ü | BB16: ü | BC16: ü | BD16: ü | BE16: ü | BF16: ü | BG16: ü | BH16: ü | BI16: ü | BJ16: ü | BK16: ü
A17: Lucerne – grazed, dryland | B17: ü | C17: ü | D17: ü | E17: ü | F17: ü | G17: ü | H17: ü | I17: ü | J17: ü | K17: ü | L17: ü | M17: ü | N17: ü | O17: ü | P17: ü | Q17: ü | R17: ü | S17: ü | T17: ü | U17: ü | V17: ü | W17: ü | X17: ü | Y17: ü | Z17: ü | AA17: ü | AB17: ü | AC17: ü | AD17: ü | AE17: ü | AF17: ü | AG17: ü | AH17: ü | AI17: ü | AJ17: ü | AK17: ü | AL17: ü | AM17: ü | AN17: ü | AO17: ü | AP17: ü | AQ17: ü | AR17: ü | AS17: ü | AT17: ü | AU17: ü | AV17: ü | AW17: ü | AX17: ü | AY17: ü | AZ17: ü | BA17: ü | BB17: ü | BC17: ü | BD17: ü | BE17: ü | BH17: ü | BI17: ü | BJ17: ü | BK17: ü
A18: Lucerne – grazed, irrigated | B18: ü | C18: ü | D18: ü | E18: ü | F18: ü | G18: ü | H18: ü | I18: ü | J18: ü | K18: ü | L18: ü | M18: ü | N18: ü | O18: ü | P18: ü | Q18: ü | R18: ü | S18: ü | T18: ü | U18: ü | V18: ü | W18: ü | X18: ü | Y18: ü | Z18: ü | AA18: ü | AB18: ü | AC18: ü | AD18: ü | AE18: ü | AF18: ü | AG18: ü | AH18: ü | AI18: ü | AJ18: ü | AK18: ü | AL18: ü | AM18: ü | AN18: ü | AO18: ü | AP18: ü | AQ18: ü | AR18: ü | AS18: ü | AT18: ü | AU18: ü | AV18: ü | AW18: ü | AX18: ü | AY18: ü | AZ18: ü | BA18: ü | BB18: ü | BC18: ü | BD18: ü | BE18: ü | BH18: ü | BI18: ü | BJ18: ü | BK18: ü
A20: Comment to include in Feed Planner tool when growth rate for this feed type is given as default:
A21: Ryegrass - Dryland - Perennial | B21: Estimates of daily growth rate provided are based on simulations of grazed pasture using the DairyMod model. Good plant density and management of grazing and fertiliser is assumed.
A22: Ryegrass - Irrigated - Perennial | B22: Estimates of daily growth rate provided are based on simulations of grazed pasture using the DairyMod model. Good plant density and management of grazing, fertiliser and irrigation is assumed.
A23: Ryegrass - Dryland - early annual | B23: Estimates of daily growth rate provided are based on simulations of grazed pasture using the DairyMod model. Good plant density and management of grazing and fertiliser is assumed. The planting date is 15 March and heading date is 20 October.
A24: Ryegrass - Irrigated - early annual | B24: Estimates of daily growth rate provided are based on simulations of grazed pasture using the DairyMod model. Good plant density and management of grazing, fertiliser and irrigation is assumed. The planting date is 15 March and heading date is 20 October.
A25: Ryegrass - Dryland - late annual | B25: Estimates of daily growth rate provided are based on simulations of grazed pasture using the DairyMod model. Good plant density and management of grazing and fertiliser is assumed. The planting date is 1 March and heading date is 15 November.
A26: Ryegrass - Irrigated - late annual | B26: Estimates of daily growth rate provided are based on simulations of grazed pasture using the DairyMod model. Good plant density and management of grazing, fertiliser and irrigation is assumed. The planting date is 1 March and heading date is 15 November.
A27: Plaintain | B27: Estimates of daily growth rate provided are based on simulations of grazed pasture using the DairyMod model. Good plant density and management of grazing and fertiliser is assumed.
A28: Chicory | B28: Estimates of daily growth rate provided are based on simulations of grazed pasture using the DairyMod model. Good plant density and management of grazing and fertiliser is assumed.
A29: Tall Fescue - Dryland | B29: Estimates of daily growth rate provided are based on simulations of grazed pasture using the DairyMod model. Good plant density and management of grazing and fertiliser is assumed.
A30: Tall Fescue - Irrigated | B30: Estimates of daily growth rate provided are based on simulations of grazed pasture using the DairyMod model. Good plant density and management of grazing and fertiliser is assumed.
A31: Clover - Red, vegetative | B31: Estimates of daily growth rate provided are based on simulations of grazed pasture using the DairyMod model. Good plant density and management of grazing and fertiliser is assumed.
A32: Kikuyu - early vegetative | B32: Estimates of daily growth rate provided are based on simulations of grazed pasture using the DairyMod model. Good plant density and management of grazing and fertiliser is assumed.
A33: Kikuyu - late vegetative | B33: Estimates of daily growth rate provided are based on simulations of grazed pasture using the DairyMod model. Good plant density and management of grazing and fertiliser is assumed.
A34: Lucerne – grazed, dryland | B34: Estimates of daily growth rate provided are based on simulations of grazed pasture using the DairyMod model. Good plant density and management of grazing and fertiliser is assumed.
A35: Lucerne – grazed, irrigated | B35: Estimates of daily growth rate provided are based on simulations of grazed pasture using the DairyMod model. Good plant density and management of grazing and fertiliser is assumed.
